Workbook

Sheet LEA Name List (hidden)
A3: Sample District - 9999
A4: Academics Plus Public Charter Schools - 6040
A5: Academies of Math and Science - 6065
A6: Alma - 1701
A7: Alpena - 0501
A8: Arkadelphia - 1002
A9: Arkansas Arts Academy - 0440
A10: Arkansas Connections Academy - 0444
A11: Arkansas Lighthouse Academies - 6050
A12: Arkansas School for the Blind - 6091
A13: Arkansas School for the Deaf - 6092
A14: Arkansas Virtual Academy - 6043
A15: Armorel - 4701
A16: Ashdown - 4101
A17: Atkins - 5801
A18: Augusta - 7401
A19: Bald Knob - 7301
A20: Barton - 5401
A21: Batesville - 3201
A22: Bauxite - 6301
A23: Bay - 1601
A24: Bearden - 5201
A25: Beebe - 7302
A26: Benton - 6302
A27: Bentonville - 0401
A28: Bergman - 0502
A29: Berryville - 0801
A30: Bismarck - 3001
A31: Blevins - 2901
A32: Blytheville - 4702
A33: Booneville - 4201
A34: Bradford - 7303
A35: Brinkley - 4801
A36: Brookland - 1603
A37: Bryant - 6303
A38: Buffalo Island Central - 1605
A39: Cabot - 4304
A40: Caddo Hills - 4901
A41: Calico Rock - 3301
A42: Camden Fairview - 5204
A43: Carlisle - 4303
A44: Cave City - 6802
A45: Cedar Ridge - 3212
A46: Cedarville - 1702
A47: Centerpoint - 5502
A48: Charleston - 2402
A49: Clarendon - 4802
A50: Clarksville - 3601
A51: Cleveland County - 1305
A52: Clinton - 7102
A53: Concord - 1201
A54: Conway - 2301
A55: Corning - 1101
A56: Cossatot River - 5707
A57: Cotter - 0302
A58: County Line - 2403
A59: Cross County - 1901
A60: Crossett - 0201
A61: Cutter Morning Star - 2601
A62: Danville - 7503
A63: Dardanelle - 7504
A64: Decatur - 0402
A65: Deer Mount Judea - 5106
A66: DeQueen - 6701
A67: Dermott - 0901
A68: Des Arc - 5901
A69: DeWitt - 0101
A70: Dierks - 3102
A71: Dover - 5802
A72: Drew Central - 2202
A73: Dumas - 2104
A74: Earle - 1802
A75: East End - 5301
A76: East Poinsett County - 5608
A77: El Dorado - 7001
A78: Elkins - 7201
A79: Emerson Taylor Bradley - 1408
A80: England - 4302
A81: Estem Public Charter School - 6047
A82: Eureka Springs - 0802
A83: Exalt Academy of Southwest Little Rock - 6055
A84: Farmington - 7202
A85: Fayetteville - 7203
A86: Flippin - 4501
A87: Fordyce - 2002
A88: Foreman - 4102
A89: Forrest City - 6201
A90: Fort Smith - 6601
A91: Fouke - 4603
A92: Founders Classical Academies of Arkansas - 0442
A93: Fountain Lake - 2602
A94: Friendship Aspire Academy Pine Bluff - 3544
A95: Future School of Fort Smith - 6640
A96: Garfield - 0448
A97: Genoa Central - 4602
A98: Gentry - 0403
A99: Glen Rose - 3002
A100: Gosnell - 4708
A101: Graduate Arkansas Charter - 6052
A102: Gravette - 0404
A103: Green Forest - 0803
A104: Greenbrier - 2303
A105: Greene County Tech - 2807
A106: Greenland - 7204
A107: Greenwood - 6602
A108: Gurdon - 1003
A109: Guy Perkins - 2304
A110: Haas Hall Academy - 7240
A111: Hackett - 6603
A112: Hamburg - 0203
A113: Hampton - 0701
A114: Harmony Grove - 5205
A115: Harmony Grove - 6304
A116: Harrisburg - 5602
A117: Harrison - 0503
A118: Hazen - 5903
A119: Heber Springs - 1202
A120: Hector - 5803
A121: Helena-W. Helena - 5403
A122: Hermitage - 0601
A123: Highland - 6804
A124: Hillcrest - 3809
A125: Hope - 2903
A126: Hope Academy of Northwest Arkansas - 0445
A127: Horatio - 6703
A128: Hot Springs - 2603
A129: Hoxie - 3804
A130: Huntsville - 4401
A131: Imboden Charter School District - 3840
A132: Institute for the Creative Arts - 6641
A133: Izard County Consolidated - 3306
A134: Jackson County - 3405
A135: Jacksonville North Pulaski - 6004
A136: Jasper - 5102
A137: Jessieville - 2604
A138: Jonesboro - 1608
A139: Junction City - 7003
A140: Kipp Delta Public Schools - 5440
A141: Kirby - 5503
A142: Lafayette County - 3704
A143: Lake Hamilton - 2605
A144: Lakeside - 0903
A145: Lakeside - 2606
A146: Lamar - 3604
A147: Lavaca - 6605
A148: Lawrence County - 3810
A149: Lead Hill - 0506
A150: Lee County - 3904
A151: Lincoln Consolidated - 7205
A152: Lisa Academy - 6041
A153: Little Rock - 6001
A154: Lonoke - 4301
A155: Magazine - 4202
A156: Magnet Cove - 3003
A157: Magnolia - 1402
A158: Malvern - 3004
A159: Mammoth Spring - 2501
A160: Manila - 4712
A161: Mansfield - 6606
A162: Marion - 1804
A163: Marked Tree - 5604
A164: Marmaduke - 2803
A165: Marvell-Elaine - 5404
A166: Mayflower - 2305
A167: Maynard - 6102
A168: McCrory - 7403
A169: McGehee - 2105
A170: Melbourne - 3302
A171: Mena - 5703
A172: Midland - 3211
A173: Mineral Springs - 3104
A174: Monticello - 2203
A175: Mount Ida - 4902
A176: Mount Vernon Enola - 2306
A177: Mountain Home - 0303
A178: Mountain Pine - 2607
A179: Mountain View - 6901
A180: Mountainburg - 1703
A181: Mulberry Pleasant View Bi-County - 1704
A182: Nashville - 3105
A183: Nemo Vista - 1503
A184: Nettleton - 1611
A185: Nevada - 5008
A186: Newport - 3403
A187: Norfork - 0304
A188: Norphlet - 7006
A189: North Little Rock - 6002
A190: Omaha - 0504
A191: Osceola - 4713
A192: Ouachita - 3005
A193: Ouachita River - 5706
A194: Ozark - 2404
A195: Ozark Mountain - 6505
A196: Palestine Wheatley - 6205
A197: Pangburn - 7309
A198: Paragould - 2808
A199: Paris - 4203
A200: Parkers Chapel - 7007
A201: Pea Ridge - 0407
A202: Perryville - 5303
... 62 more rows

Sheet Guidance
A1: Purpose:
A2: The AR App guides districts in creating a district wide Strategic Plan to support student learning outcomes. Once districts identify their priorities in the AR App, Superintendents, along with their AR App Team, must determine how to implement those priorities. The most direct way is to focus on how the district develops their budget. This tool is designed to guide Superintendents and their AR App Teams in budgeting thier federal and state funding sources to support the district's Strategic Plan.
A4: How to use this tool:
A5: Step 1: Superintendents and their AR App Team review their district's AR App to determine what expenditures are needed to support the district's Strategic Plan developed through the Ar App.
A6: Step 2: Federal/State program coordinators identify possible expenditures that support the implementation of the district's Strategic Plan developed through the AR App.
A7: Step 3: If needed Federal/State program coordinators propose what the district could consider not funding in order to meet the requirements of the AR App developed Strategic Plan.
A8: Step 4: Superintendents develop a budget from the available options and funding sources that support the Strategic Plan developed through the Ar App.
A10: Resources:
A11: AR APP Website
A12: Student Special Needs Funding Rules

Sheet Budget Overview
A2: Sample District - 9999
A3: =RIGHT(A2,4) -> 9999
A4: Fund Source | B4: Previous Year Carryover | C4: Current Year Allocation | D4: Total Budgeted | E4: Difference (Amount Not Budgeted) (Amount Over Budgeted)
A5: ABC- 2365 | B5: =VLOOKUP($A$3,Carryover!$A$2:$W$264,7,FALSE) -> 0 | C5: =VLOOKUP($A$3,Allocation!$A$2:$W$264,7,FALSE) -> 0 | D5: =SUMIF('AR APP Budget Sheet'!$E:$E,'Budget Overview'!A5,'AR APP Budget Sheet'!$C:$C) -> 0 | E5: =B5+C5-D5 -> 0
A6: ALE- 2275 | B6: =VLOOKUP($A$3,Carryover!$A$2:$W$264,3,FALSE) -> 5665.78 | C6: =VLOOKUP($A$3,Allocation!$A$2:$W$264,3,FALSE) -> 39351 | D6: =SUMIF('AR APP Budget Sheet'!$E:$E,'Budget Overview'!A6,'AR APP Budget Sheet'!$C:$C) -> 0 | E6: =B6+C6-D6 -> 45016.78
A7: ELL- 2276 | B7: =VLOOKUP($A$3,Carryover!$A$2:$W$264,4,FALSE) -> 11908.99 | C7: =VLOOKUP($A$3,Allocation!$A$2:$W$264,4,FALSE) -> 80886 | D7: =SUMIF('AR APP Budget Sheet'!$E:$E,'Budget Overview'!A7,'AR APP Budget Sheet'!$C:$C) -> 0 | E7: 92794.99
A8: ESA- 2281 | B8: =VLOOKUP($A$3,Carryover!$A$2:$W$264,5,FALSE) -> 42761.41 | C8: =VLOOKUP($A$3,Allocation!$A$2:$W$264,5,FALSE) -> 485276 | D8: =SUMIF('AR APP Budget Sheet'!$E:$E,'Budget Overview'!A8,'AR APP Budget Sheet'!$C:$C) -> 0 | E8: 528037.41
A9: PD- 2223 | B9: =VLOOKUP($A$3,Carryover!$A$2:$W$264,6,FALSE) -> 0 | C9: =VLOOKUP($A$3,Allocation!$A$2:$W$264,6,FALSE) -> 21190 | D9: =SUMIF('AR APP Budget Sheet'!$E:$E,'Budget Overview'!A9,'AR APP Budget Sheet'!$C:$C) -> 0 | E9: 21190
A10: Title I-A 6501 | B10: =VLOOKUP($A$3,Carryover!$A$2:$W$264,16,FALSE) -> 20803.91 | C10: =VLOOKUP($A$3,Allocation!$A$2:$W$264,16,FALSE) -> 139236.78 | D10: =SUMIF('AR APP Budget Sheet'!$E:$E,'Budget Overview'!A10,'AR APP Budget Sheet'!$C:$C) -> 0 | E10: 160040.69
A11: Title I-C 6502 | B11: =VLOOKUP($A$3,Carryover!$A$2:$W$264,17,FALSE) -> 0 | C11: =VLOOKUP($A$3,Allocation!$A$2:$W$264,17,FALSE) -> 0 | D11: =SUMIF('AR APP Budget Sheet'!$E:$E,'Budget Overview'!A11,'AR APP Budget Sheet'!$C:$C) -> 0 | E11: 0
A12: Title I-D 6510 | B12: =VLOOKUP($A$3,Carryover!$A$2:$W$264,18,FALSE) -> 0 | C12: =VLOOKUP($A$3,Allocation!$A$2:$W$264,18,FALSE) -> 0 | D12: =SUMIF('AR APP Budget Sheet'!$E:$E,'Budget Overview'!A12,'AR APP Budget Sheet'!$C:$C) -> 0 | E12: 0
A13: Title II- 6756 | B13: =VLOOKUP($A$3,Carryover!$A$2:$W$264,19,FALSE) -> 4518.98 | C13: =VLOOKUP($A$3,Allocation!$A$2:$W$264,19,FALSE) -> 27611.89 | D13: =SUMIF('AR APP Budget Sheet'!$E:$E,'Budget Overview'!A13,'AR APP Budget Sheet'!$C:$C) -> 0 | E13: 32130.87
A14: Title III-ESOL- 6761 | B14: =VLOOKUP($A$3,Carryover!$A$2:$W$264,20,FALSE) -> 11657.27 | C14: =VLOOKUP($A$3,Allocation!$A$2:$W$264,20,FALSE) -> 23604.54 | D14: =SUMIF('AR APP Budget Sheet'!$E:$E,'Budget Overview'!A14,'AR APP Budget Sheet'!$C:$C) -> 0 | E14: 35261.81
A15: Title IV- 6786 | B15: =VLOOKUP($A$3,Carryover!$A$2:$W$264,21,FALSE) -> 4250.38 | C15: =VLOOKUP($A$3,Allocation!$A$2:$W$264,21,FALSE) -> 10784.57 | D15: =SUMIF('AR APP Budget Sheet'!$E:$E,'Budget Overview'!A15,'AR APP Budget Sheet'!$C:$C) -> 0 | E15: 15034.95
A16: Title V- 6784 | B16: =VLOOKUP($A$3,Carryover!$A$2:$W$264,22,FALSE) -> 0 | C16: =VLOOKUP($A$3,Allocation!$A$2:$W$264,22,FALSE) -> 0 | D16: =SUMIF('AR APP Budget Sheet'!$E:$E,'Budget Overview'!A16,'AR APP Budget Sheet'!$C:$C) -> 0 | E16: 0
A17: Medicaid - 6750 | B17: =VLOOKUP($A$3,Carryover!$A$2:$W$264,8,FALSE) -> 0 | C17: =VLOOKUP($A$3,Allocation!$A$2:$W$264,8,FALSE) -> 0 | D17: =SUMIF('AR APP Budget Sheet'!$E:$E,'Budget Overview'!A17,'AR APP Budget Sheet'!$C:$C) -> 0 | E17: 0
A18: ARMAC- 6752 | B18: =VLOOKUP($A$3,Carryover!$A$2:$W$264,9,FALSE) -> 0 | C18: =VLOOKUP($A$3,Allocation!$A$2:$W$264,9,FALSE) -> 0 | D18: =SUMIF('AR APP Budget Sheet'!$E:$E,'Budget Overview'!A18,'AR APP Budget Sheet'!$C:$C) -> 0 | E18: =B18+C18-D18 -> 0
A19: State EIDT Budget - 2262 | B19: =VLOOKUP($A$3,Carryover!$A$2:'Carryover'!W$264,10,FALSE) -> 0 | C19: =VLOOKUP($A$3,Allocation!$A$2:$W$264,10,FALSE) -> 6266.78 | D19: =SUMIF('AR APP Budget Sheet'!$E:$E,'Budget Overview'!A19,'AR APP Budget Sheet'!$C:$C) -> 0 | E19: 6266.78
A20: State EC SPED Budget - 2260 | B20: =VLOOKUP($A$3,Carryover!$A$2:$W$264,15,FALSE) -> 0 | C20: =VLOOKUP($A$3,Allocation!$A$2:$W$264,15,FALSE) -> 17644 | D20: =SUMIF('AR APP Budget Sheet'!$E:$E,'Budget Overview'!A20,'AR APP Budget Sheet'!$C:$C) -> 0 | E20: 17644
A21: IDEA Part B (3-5) Budget - 6710 | B21: =VLOOKUP($A$3,Carryover!$A$2:$W$264,14,FALSE) -> 28.69 | C21: =VLOOKUP($A$3,Allocation!$A$2:$W$264,14,FALSE) -> 5729.96 | D21: =SUMIF('AR APP Budget Sheet'!$E:$E,'Budget Overview'!A21,'AR APP Budget Sheet'!$C:$C) -> 0 | E21: 5758.65
A22: IDEA Part B (3-21) Budget - 6702 | B22: =VLOOKUP($A$3,Carryover!$A$2:$W$264,23,FALSE) -> 51686.79 | C22: =VLOOKUP($A$3,Allocation!$A$2:$W$264,23,FALSE) -> 164607.6 | D22: =SUMIF('AR APP Budget Sheet'!$E:$E,'Budget Overview'!A22,'AR APP Budget Sheet'!$C:$C) -> 0 | E22: 216294.39
A23: GT Required Expenditure | B23: =VLOOKUP($A$3,Carryover!$A$2:$W$264,12,FALSE) -> 0 | C23: =VLOOKUP($A$3,Allocation!$A$2:$W$264,12,FALSE) -> 32933.11 | D23: =SUMIF('AR APP Budget Sheet'!$E:$E,'Budget Overview'!A23,'AR APP Budget Sheet'!$C:$C) -> 0 | E23: 32933.11
A24: Grant | D24: =SUMIF('AR APP Budget Sheet'!$E:$E,'Budget Overview'!A24,'AR APP Budget Sheet'!$C:$C) -> 0 | E24: 0
A25: Operating | D25: =SUMIF('AR APP Budget Sheet'!$E:$E,'Budget Overview'!A25,'AR APP Budget Sheet'!$C:$C) -> 0 | E25: 0
A26: Other | D26: =SUMIF('AR APP Budget Sheet'!$E:$E,'Budget Overview'!A26,'AR APP Budget Sheet'!$C:$C) -> 0 | E26: 0

Sheet AR APP Budget Sheet
A1: ='Budget Overview'!A2 -> Sample District - 9999
B3: Step 1: Proposed Purchase | C3: Estimated Cost | D3: Is this a new expenditure? | E3: Step 2: Source of Funds | F3: Step 3: Proposed Cut | G3: Step 3: Estimated Cost | H3: Step 3: Source of Funds
A4: Improving Academic Outcomes
A6: Priority 1.1
A7: Identify High Quality Instructional Materials (HQIM) for core instruction in literacy and math. | I7: =+$A$6 -> Priority 1.1 | J7: =#REF! -> 
I11: =+$A$6 -> Priority 1.1 | J11: =#REF! -> 
I12: Priority 1.1 | J12: =#REF! -> 
I13: Priority 1.1 | J13: =#REF! -> 
A15: Priority 1.2
A16: Identify Professional Learning | I16: =$A$15 -> Priority 1.2 | J16: =$A$16 -> Identify Professional Learning
I17: Priority 1.2 | J17: Identify Professional Learning
I18: Priority 1.2 | J18: Identify Professional Learning
I20: Priority 1.2 | J20: Identify Professional Learning
I21: Priority 1.2 | J21: Identify Professional Learning
I22: Priority 1.2 | J22: Identify Professional Learning
I23: Priority 1.2 | J23: Identify Professional Learning
A25: Priority 1.3
A26: Identify High Quality Supplemental Instructional Materials | I26: =$A$25 -> Priority 1.3 | J26: =$A$26 -> Identify High Quality Supplemental Instructional Materials
I27: Priority 1.3 | J27: Identify High Quality Supplemental Instructional Materials
I28: Priority 1.3 | J28: Identify High Quality Supplemental Instructional Materials
I29: Priority 1.3 | J29: Identify High Quality Supplemental Instructional Materials
I30: Priority 1.3 | J30: Identify High Quality Supplemental Instructional Materials
I31: Priority 1.3 | J31: Identify High Quality Supplemental Instructional Materials
I32: Priority 1.3 | J32: Identify High Quality Supplemental Instructional Materials
A34: Priority 1.4
A35: How is the district supporting teachers and building administrators to improve literacy instruction aligned with the Science of Reading (SoR)? | I35: =$A$34 -> Priority 1.4 | J35: =$A$35 -> How is the district supporting teachers and building administrators to improve literacy instruction aligned with the Science of Reading (SoR)?
I36: Priority 1.4 | J36: How is the district supporting teachers and building administrators to improve literacy instruction aligned with the Science of Reading (SoR)?
I37: Priority 1.4 | J37: How is the district supporting teachers and building administrators to improve literacy instruction aligned with the Science of Reading (SoR)?
I38: Priority 1.4 | J38: How is the district supporting teachers and building administrators to improve literacy instruction aligned with the Science of Reading (SoR)?
I39: Priority 1.4 | J39: How is the district supporting teachers and building administrators to improve literacy instruction aligned with the Science of Reading (SoR)?
I40: Priority 1.4 | J40: How is the district supporting teachers and building administrators to improve literacy instruction aligned with the Science of Reading (SoR)?
I41: Priority 1.4 | J41: How is the district supporting teachers and building administrators to improve literacy instruction aligned with the Science of Reading (SoR)?
A43: Priority 1.5
A44: What supports will the district provide general education teachers to ensure students with disabilities and English Learners are able to access core instruction? | I44: =$A$43 -> Priority 1.5 | J44: =$A$44 -> What supports will the district provide general education teachers to ensure students with disabilities and English Learners are able to access core instruction?
I45: Priority 1.5 | J45: What supports will the district provide general education teachers to ensure students with disabilities and English Learners are able to access core instruction?
I46: Priority 1.5 | J46: What supports will the district provide general education teachers to ensure students with disabilities and English Learners are able to access core instruction?
I47: Priority 1.5 | J47: What supports will the district provide general education teachers to ensure students with disabilities and English Learners are able to access core instruction?
I48: Priority 1.5 | J48: What supports will the district provide general education teachers to ensure students with disabilities and English Learners are able to access core instruction?
I49: Priority 1.5 | J49: What supports will the district provide general education teachers to ensure students with disabilities and English Learners are able to access core instruction?
I51: Priority 1.5 | J51: What supports will the district provide general education teachers to ensure students with disabilities and English Learners are able to access core instruction?
A52: Supplemental Supports
A53: Priority 1.8-1.9
A54: What accelerated learning opportunities will be offered to students next year? What supplemental supports are available to increase access to and success in accelerated learning opportunities? | B54: Elementary: | I54: =$A$53 -> Priority 1.8-1.9 | J54: =$A$54 -> What accelerated learning opportunities will be offered to students next year? What supplemental supports are available to increase access to and success in accelerated learning opportunities?
I55: Priority 1.8-1.9 | J55: What accelerated learning opportunities will be offered to students next year? What supplemental supports are available to increase access to and success in accelerated learning opportunities?
I56: Priority 1.8-1.9 | J56: What accelerated learning opportunities will be offered to students next year? What supplemental supports are available to increase access to and success in accelerated learning opportunities?
B57: Middle: | I57: Priority 1.8-1.9 | J57: What accelerated learning opportunities will be offered to students next year? What supplemental supports are available to increase access to and success in accelerated learning opportunities?
I58: Priority 1.8-1.9 | J58: What accelerated learning opportunities will be offered to students next year? What supplemental supports are available to increase access to and success in accelerated learning opportunities?
I59: Priority 1.8-1.9 | J59: What accelerated learning opportunities will be offered to students next year? What supplemental supports are available to increase access to and success in accelerated learning opportunities?
B60: High School: | I60: Priority 1.8-1.9 | J60: What accelerated learning opportunities will be offered to students next year? What supplemental supports are available to increase access to and success in accelerated learning opportunities?
I61: Priority 1.8-1.9 | J61: What accelerated learning opportunities will be offered to students next year? What supplemental supports are available to increase access to and success in accelerated learning opportunities?
A63: Priority 1.10-1.11
A64: Describe supplemental academic services and wrap-around supports for the following: | B64: ALE: | I64: =$A$63 -> Priority 1.10-1.11 | J64: =$A$64 -> Describe supplemental academic services and wrap-around supports for the following:
B65: SPED: | I65: Priority 1.10-1.11 | J65: Describe supplemental academic services and wrap-around supports for the following:
B66: EL (LIEP): | I66: Priority 1.10-1.11 | J66: Describe supplemental academic services and wrap-around supports for the following:
B67: MIGRANT: | I67: Priority 1.10-1.11 | J67: Describe supplemental academic services and wrap-around supports for the following:
B68: Title I: | I68: Priority 1.10-1.11 | J68: Describe supplemental academic services and wrap-around supports for the following:
I69: Priority 1.10-1.11 | J69: Describe supplemental academic services and wrap-around supports for the following:
I70: Priority 1.10-1.11 | J70: Describe supplemental academic services and wrap-around supports for the following:
A71: Transitions or Extended Opportunities
A72: Priority 1.12
A73: Describe your transition strategies for students. | B73: Pre-K to Kindergarten | I73: =$A$72 -> Priority 1.12 | J73: =$A$73 -> Describe your transition strategies for students.
I74: Priority 1.12 | J74: Describe your transition strategies for students.
B75: Elementary to Middle/Junior High | I75: Priority 1.12 | J75: Describe your transition strategies for students.
I76: Priority 1.12 | J76: Describe your transition strategies for students.
I77: Priority 1.12 | J77: Describe your transition strategies for students.
B78: High School to Postsecondary/Career/Military | I78: Priority 1.12 | J78: Describe your transition strategies for students.
I79: Priority 1.12 | J79: Describe your transition strategies for students.
A81: Priority 1.13
A82: How will the district implement Student Success Plans for students in grades 8-12? | I82: =$A$81 -> Priority 1.13 | J82: =$A$82 -> How will the district implement Student Success Plans for students in grades 8-12?
I83: Priority 1.13 | J83: How will the district implement Student Success Plans for students in grades 8-12?
I84: Priority 1.13 | J84: How will the district implement Student Success Plans for students in grades 8-12?
I85: Priority 1.13 | J85: How will the district implement Student Success Plans for students in grades 8-12?
I86: Priority 1.13 | J86: How will the district implement Student Success Plans for students in grades 8-12?
I87: Priority 1.13 | J87: How will the district implement Student Success Plans for students in grades 8-12?
I88: Priority 1.13 | J88: How will the district implement Student Success Plans for students in grades 8-12?
A90: Priority 1.14-1.15
A91: What early childhood access and opportunities does your district provide for your community to ensure kindergarten readiness? What additional services does the district provide to early childhood at-risk subgroups? | B91: Economically Disadvantaged | I91: =$A$90 -> Priority 1.14-1.15 | J91: =$A$91 -> What early childhood access and opportunities does your district provide for your community to ensure kindergarten readiness? What additional services does the district provide to early childhood at-risk subgroups?
B92: SPED | I92: Priority 1.14-1.15 | J92: What early childhood access and opportunities does your district provide for your community to ensure kindergarten readiness? What additional services does the district provide to early childhood at-risk subgroups?
B93: EL | I93: Priority 1.14-1.15 | J93: What early childhood access and opportunities does your district provide for your community to ensure kindergarten readiness? What additional services does the district provide to early childhood at-risk subgroups?
B94: Migrant | I94: Priority 1.14-1.15 | J94: What early childhood access and opportunities does your district provide for your community to ensure kindergarten readiness? What additional services does the district provide to early childhood at-risk subgroups?
I95: Priority 1.14-1.15 | J95: What early childhood access and opportunities does your district provide for your community to ensure kindergarten readiness? What additional services does the district provide to early childhood at-risk subgroups?
I96: Priority 1.14-1.15 | J96: What early childhood access and opportunities does your district provide for your community to ensure kindergarten readiness? What additional services does the district provide to early childhood at-risk subgroups?
I97: Priority 1.14-1.15 | J97: What early childhood access and opportunities does your district provide for your community to ensure kindergarten readiness? What additional services does the district provide to early childhood at-risk subgroups?
A99: Priority 1.16
A100: For the 2025-26 school year, districts are required to offer at least one success-ready pathway aligned to the high-wage and high-growth requirement. Which success-ready pathway(s) will your district offer that aligns to these requirements?
A106: Family and Community Engagement
A107: Priority 1.17-1.18
A108: What actions and activities does the district provide to promote Family and Community Engagement? | I108: =$A$107 -> Priority 1.17-1.18 | J108: =$A$108 -> What actions and activities does the district provide to promote Family and Community Engagement?
I109: Priority 1.17-1.18 | J109: What actions and activities does the district provide to promote Family and Community Engagement?
I110: Priority 1.17-1.18 | J110: What actions and activities does the district provide to promote Family and Community Engagement?
I111: Priority 1.17-1.18 | J111: What actions and activities does the district provide to promote Family and Community Engagement?
I112: Priority 1.17-1.18 | J112: What actions and activities does the district provide to promote Family and Community Engagement?
I113: Priority 1.17-1.18 | J113: What actions and activities does the district provide to promote Family and Community Engagement?
I114: Priority 1.17-1.18 | J114: What actions and activities does the district provide to promote Family and Community Engagement?
A116: Improving Academic Outcomes Grand Total | C116: =SUM(C16:C114) -> 0
A117: Safe and Healthy Schools
A119: Priority 2.1
A120: How does the district promote and improve school climate? | I120: =$A$119 -> Priority 2.1 | J120: =$A$120 -> How does the district promote and improve school climate?
I121: Priority 2.1 | J121: How does the district promote and improve school climate?
I122: Priority 2.1 | J122: How does the district promote and improve school climate?
I123: Priority 2.1 | J123: How does the district promote and improve school climate?
I124: Priority 2.1 | J124: How does the district promote and improve school climate?
I125: Priority 2.1 | J125: How does the district promote and improve school climate?
I126: Priority 2.1 | J126: How does the district promote and improve school climate?
A128: Priority 2.2
A129: What is the district’s plan to provide access to mental health services? | I129: =$A$128 -> Priority 2.2 | J129: =$A$129 -> What is the district’s plan to provide access to mental health services?
I130: Priority 2.2 | J130: What is the district’s plan to provide access to mental health services?
I131: Priority 2.2 | J131: What is the district’s plan to provide access to mental health services?
I132: Priority 2.2 | J132: What is the district’s plan to provide access to mental health services?
I133: Priority 2.2 | J133: What is the district’s plan to provide access to mental health services?
I134: Priority 2.2 | J134: What is the district’s plan to provide access to mental health services?
I135: Priority 2.2 | J135: What is the district’s plan to provide access to mental health services?
A137: Priority 2.4
A138: How does the district progress monitor and support the students identified by the processes in the previous question? | I138: =$A$137 -> Priority 2.4 | J138: =$A$138 -> How does the district progress monitor and support the students identified by the processes in the previous question?
I139: Priority 2.4 | J139: How does the district progress monitor and support the students identified by the processes in the previous question?
I140: Priority 2.4 | J140: How does the district progress monitor and support the students identified by the processes in the previous question?
I141: Priority 2.4 | J141: How does the district progress monitor and support the students identified by the processes in the previous question?
I142: Priority 2.4 | J142: How does the district progress monitor and support the students identified by the processes in the previous question?
I143: Priority 2.4 | J143: How does the district progress monitor and support the students identified by the processes in the previous question?
I144: Priority 2.4 | J144: How does the district progress monitor and support the students identified by the processes in the previous question?
A146: Priority 2.5
A147: What efforts does the district take to reduce the overuse of discipline practices that remove students from the classroom? [ESEA § 1112(b)(11)] | I147: =$A$155 -> Priority 2.6-2.7 | J147: =$A$156 -> Health & Wellness
I148: Priority 2.6-2.7 | J148: Health & Wellness
I149: Priority 2.6-2.7 | J149: Health & Wellness
I150: Priority 2.6-2.7 | J150: Health & Wellness
I151: Priority 2.6-2.7 | J151: Health & Wellness
I152: Priority 2.6-2.7 | J152: Health & Wellness
I153: Priority 2.6-2.7 | J153: Health & Wellness
A155: Priority 2.6-2.7
A156: Health & Wellness | I156: =$A$155 -> Priority 2.6-2.7 | J156: =$A$156 -> Health & Wellness
I157: Priority 2.6-2.7 | J157: Health & Wellness
I158: Priority 2.6-2.7 | J158: Health & Wellness
I159: Priority 2.6-2.7 | J159: Health & Wellness
I160: Priority 2.6-2.7 | J160: Health & Wellness
I161: Priority 2.6-2.7 | J161: Health & Wellness
I162: Priority 2.6-2.7 | J162: Health & Wellness
A164: Safe and Healthy Schools Grand Total | C164: =SUM(C119:C162) -> 0
A165: Quality Educational Workforce
A167: Priority 3.3
A168: How does the district address any disparities that result in the above groups being taught at higher rates than other students by ineffective, inexperienced, or out-of-field teachers? [ESEA § 1112(b)(2)] | I168: =$A$167 -> Priority 3.3 | J168: =$A$168 -> How does the district address any disparities that result in the above groups being taught at higher rates than other students by ineffective, inexperienced, or out-of-field teachers? [ESEA § 1112(b)(2)]
I169: Priority 3.3 | J169: How does the district address any disparities that result in the above groups being taught at higher rates than other students by ineffective, inexperienced, or out-of-field teachers? [ESEA § 1112(b)(2)]
I170: Priority 3.3 | J170: How does the district address any disparities that result in the above groups being taught at higher rates than other students by ineffective, inexperienced, or out-of-field teachers? [ESEA § 1112(b)(2)]
I171: Priority 3.3 | J171: How does the district address any disparities that result in the above groups being taught at higher rates than other students by ineffective, inexperienced, or out-of-field teachers? [ESEA § 1112(b)(2)]
I172: Priority 3.3 | J172: How does the district address any disparities that result in the above groups being taught at higher rates than other students by ineffective, inexperienced, or out-of-field teachers? [ESEA § 1112(b)(2)]
I173: Priority 3.3 | J173: How does the district address any disparities that result in the above groups being taught at higher rates than other students by ineffective, inexperienced, or out-of-field teachers? [ESEA § 1112(b)(2)]
I174: Priority 3.3 | J174: How does the district address any disparities that result in the above groups being taught at higher rates than other students by ineffective, inexperienced, or out-of-field teachers? [ESEA § 1112(b)(2)]
A176: Priority 3.5
A177: What additional support does the district provide to educators who are unlicensed or teaching outside their area of expertise? | I177: =$A$176 -> Priority 3.5 | J177: =$A$177 -> What additional support does the district provide to educators who are unlicensed or teaching outside their area of expertise?
I178: Priority 3.5 | J178: What additional support does the district provide to educators who are unlicensed or teaching outside their area of expertise?
I179: Priority 3.5 | J179: What additional support does the district provide to educators who are unlicensed or teaching outside their area of expertise?
I180: Priority 3.5 | J180: What additional support does the district provide to educators who are unlicensed or teaching outside their area of expertise?
I181: Priority 3.5 | J181: What additional support does the district provide to educators who are unlicensed or teaching outside their area of expertise?
I182: Priority 3.5 | J182: What additional support does the district provide to educators who are unlicensed or teaching outside their area of expertise?
I183: Priority 3.5 | J183: What additional support does the district provide to educators who are unlicensed or teaching outside their area of expertise?
A185: Priority 3.6
A186: What additional compensation will the district offer for mentor teachers, lead/master designation, identified shortage areas, or greatest areas of need identified locally? [ESEA § 2103(b)] | I186: =$A$185 -> Priority 3.6 | J186: =$A$186 -> What additional compensation will the district offer for mentor teachers, lead/master designation, identified shortage areas, or greatest areas of need identified locally? [ESEA § 2103(b)]
I187: Priority 3.6 | J187: What additional compensation will the district offer for mentor teachers, lead/master designation, identified shortage areas, or greatest areas of need identified locally? [ESEA § 2103(b)]
I188: Priority 3.6 | J188: What additional compensation will the district offer for mentor teachers, lead/master designation, identified shortage areas, or greatest areas of need identified locally? [ESEA § 2103(b)]
I189: Priority 3.6 | J189: What additional compensation will the district offer for mentor teachers, lead/master designation, identified shortage areas, or greatest areas of need identified locally? [ESEA § 2103(b)]
I190: Priority 3.6 | J190: What additional compensation will the district offer for mentor teachers, lead/master designation, identified shortage areas, or greatest areas of need identified locally? [ESEA § 2103(b)]
I191: Priority 3.6 | J191: What additional compensation will the district offer for mentor teachers, lead/master designation, identified shortage areas, or greatest areas of need identified locally? [ESEA § 2103(b)]
I192: Priority 3.6 | J192: What additional compensation will the district offer for mentor teachers, lead/master designation, identified shortage areas, or greatest areas of need identified locally? [ESEA § 2103(b)]
A194: Quality Educational Workforce Grand Total | C194: =SUM(C167:C192) -> 0
A195: State Programs
A197: State Programs 1.1
A198: ALE Programs | I198: =$A$197 -> State Programs 1.1 | J198: =$A$198 -> ALE Programs
I199: State Programs 1.1 | J199: ALE Programs
I200: State Programs 1.1 | J200: ALE Programs
I201: State Programs 1.1 | J201: ALE Programs
I202: State Programs 1.1 | J202: ALE Programs
I203: State Programs 1.1 | J203: ALE Programs
A205: State Programs 1.2
A206: English Language Personnel | I206: =$A$205 -> State Programs 1.2 | J206: =$A$206 -> English Language Personnel
I207: State Programs 1.2 | J207: English Language Personnel
I208: State Programs 1.2 | J208: English Language Personnel
I209: State Programs 1.2 | J209: English Language Personnel
I210: State Programs 1.2 | J210: English Language Personnel
I211: State Programs 1.2 | J211: English Language Personnel
I212: State Programs 1.2 | J212: English Language Personnel
A214: State Programs 1.3-1.5
A215: Gifted & Talented Program | I215: =$A$214 -> State Programs 1.3-1.5 | J215: =$A$215 -> Gifted & Talented Program
I216: State Programs 1.3-1.5 | J216: Gifted & Talented Program
I217: State Programs 1.3-1.5 | J217: Gifted & Talented Program
I218: State Programs 1.3-1.5 | J218: Gifted & Talented Program
I219: State Programs 1.3-1.5 | J219: Gifted & Talented Program
I220: State Programs 1.3-1.5 | J220: Gifted & Talented Program
I221: State Programs 1.3-1.5 | J221: Gifted & Talented Program
A223: State Programs 1.6 ESA
A224: Does the school district intends to transfer ESA funds to other programs? | I224: =$A$223 -> State Programs 1.6 ESA | J224: =$A$224 -> Does the school district intends to transfer ESA funds to other programs?
I225: State Programs 1.6 ESA | J225: Does the school district intends to transfer ESA funds to other programs?
I226: State Programs 1.6 ESA | J226: Does the school district intends to transfer ESA funds to other programs?
I227: State Programs 1.6 ESA | J227: Does the school district intends to transfer ESA funds to other programs?
I228: State Programs 1.6 ESA | J228: Does the school district intends to transfer ESA funds to other programs?
I229: State Programs 1.6 ESA | J229: Does the school district intends to transfer ESA funds to other programs?
I230: State Programs 1.6 ESA | J230: Does the school district intends to transfer ESA funds to other programs?
A232: State Programs Grand Total | C232: =SUM(C197:C230) -> 0
A234: Other District Expenses
A235: Are there any other necessary purchases your district will make not aligned to the AR App priorities?
A242: Other Grand Total | C242: =SUM(C235:C241) -> 0

Sheet Funding Sources (hidden)
D1: Is this a new expenditure?
D2: Yes
D3: No
A5: P1.1 | B5: ESA- 2281
B6: Operating
B7: Grant
B8: Other
A9: P1.2 | B9: ALE- 2275
B10: ELL- 2276
B11: ESA- 2281
B12: Grant
B13: Operating
B14: PD- 2223
B15: Title I-A 6501
B16: Title II- 6756
B17: Title III-ESOL- 6761-ESOL
B18: IDEA Part B (3-21) Budget - 6702
B19: Title V- 6784
B20: Other
A21: P1.3 | B21: ALE- 2275
B22: ELL- 2276
B23: ESA- 2281
B24: Operating
B25: Title I-A 6501
B26: Title III-ESOL- 6761-ESOL
B27: Title IV- 6786
B28: Title V- 6784
B29: IDEA Part B (3-21) Budget - 6702
B30: Other
A31: P1.4 | B31: ESA- 2281
B32: Operating
B33: PD- 2223
B34: Title I-A 6501
B35: Title II- 6756
B36: Title V- 6784
B37: IDEA Part B (3-21) Budget - 6702
B38: Other
A39: P1.5 | B39: ELL- 2276
B40: ESA- 2281
B41: Operating
B42: PD- 2223
B43: Title I-A 6501
B44: Title II- 6756
B45: Title III-ESOL- 6761-ESOL
B46: Title V- 6784
B47: IDEA Part B (3-21) Budget - 6702
B48: Other
A49: P1.6 | B49: ESA- 2281
B50: Operating
B51: Title I-A 6501
B52: Title V- 6784
B53: IDEA Part B (3-21) Budget - 6702
B54: Other
A55: P1.7 | B55: ESA- 2281
B56: Operating
B57: Title I-A 6501
B58: Title V- 6784
B59: IDEA Part B (3-21) Budget - 6702
B60: Other
A61: P1.8 and P1.9 | B61: ESA- 2281
B62: Operating
B63: Title I-A 6501
B64: Title IV- 6786
B65: Title V- 6784
B66: IDEA Part B (3-21) Budget - 6702
B67: Other
A68: P1.10 and P1.11 | B68: ALE- 2275
B69: ELL- 2276
B70: ESA- 2281
B71: Operating
B72: Title I-A 6501
B73: Title I-C 6502
B74: Title IV- 6786
B75: Title V- 6784
B76: IDEA Part B (3-21) Budget - 6702
B77: Other
A78: P1.12 | B78: ESA- 2281
B79: Operating
B80: State EC SPED Budget - 2260
B81: Title I-A 6501
B82: Title I-C 6502
B83: Title V- 6784
B84: IDEA Part B (3-21) Budget - 6702
B85: Other
A86: P1.13 | B86: ELL- 2276
B87: ESA- 2281
B88: Operating
B89: Title I-A 6501
B90: Title I-C 6502
B91: Title III-ESOL- 6761-ESOL
B92: IDEA Part B (3-21) Budget - 6702
B93: Other
A94: P1.14 | B94: ABC- 2365
B95: State EIDT Budget - 2262
B96: ESA- 2281
B97: Operating
B98: State EC SPED Budget - 2260
B99: Title I-A 6501
B100: Title I-C 6502
B101: Title V- 6784
B102: IDEA Part B (3-5) Budget - 6710
B103: IDEA Part B (3-21) Budget - 6702
B104: Other
A105: P1.15 | B105: ABC- 2365
B106: State EIDT Budget - 2262
B107: ELL- 2276
B108: ESA- 2281
B109: Operating
B110: State EC SPED Budget - 2260
B111: Title I-A 6501
B112: Title I-C 6502
B113: Title III-ESOL- 6761-ESOL
B114: Title V- 6784
B115: IDEA Part B (3-5) Budget - 6710
B116: IDEA Part B (3-21) Budget - 6702
B117: Other
A118: P1.16 | B118: Operating
B119: Title I-A 6501
B120: Other
A121: P1.17 and P1.18 | B121: ESA- 2281
B122: Operating
B123: Title I-A 6501
B124: Title V- 6784
B125: IDEA Part B (3-5) Budget - 6710
B126: Other
A127: P1.19 | B127: ALE- 2275
B128: ELL- 2276
B129: ESA- 2281
B130: Operating
B131: Title I-A 6501
B132: Title V- 6784
B133: IDEA Part B (3-21) Budget - 6702
B134: Other
A136: P2.1 | B136: ARMAC- 6752- 6752
B137: ESA- 2281
B138: Operating
B139: Title I-A 6501
B140: Title IV- 6786
B141: Title V- 6784
B142: IDEA Part B (3-21) Budget - 6702
B143: Other
A144: P2.2 | B144: ARMAC- 6752
B145: ESA- 2281
B146: Operating
B147: Title I-A 6501
B148: Title IV- 6786
B149: Title V- 6784
B150: IDEA Part B (3-21) Budget - 6702
B151: Other
A152: P2.3 | B152: ARMAC- 6752
B153: ESA- 2281
B154: Operating
B155: Title I-A 6501
B156: Title IV- 6786
B157: Title V- 6784
B158: IDEA Part B (3-21) Budget - 6702
B159: Other
A160: P2.4 | B160: ARMAC- 6752
B161: ESA- 2281
B162: Operating
B163: Title I-A 6501
B164: Title IV- 6786
B165: Title V- 6784
B166: IDEA Part B (3-21) Budget - 6702
B167: Other
A168: P2.5 | B168: ALE- 2275
B169: ESA- 2281
B170: Operating
B171: PD- 2223
B172: Title I-A 6501
B173: Title IV- 6786
B174: Title V- 6784
B175: IDEA Part B (3-21) Budget - 6702
B176: Other
A177: 2.6 and 2.7 Health | B177: ARMAC- 6752
B178: ESA- 2281
B179: Operating
B180: Title I-A 6501
B181: Title IV- 6786
B182: Title V- 6784
B183: Other
A185: P3.1 | B185: ESA- 2281
B186: Operating
B187: Title I-A 6501
B188: Title II- 6756
B189: Title III-ESOL- 6761-ESOL
B190: Title V- 6784
B191: IDEA Part B (3-21) Budget - 6702
B192: Other
A193: P3.2 | B193: ESA- 2281
B194: Operating
B195: Title I-A 6501
B196: Title II- 6756
B197: Title III-ESOL- 6761-ESOL
B198: Title V- 6784
B199: IDEA Part B (3-21) Budget - 6702
B200: Other
A201: P3.3 | B201: ESA- 2281
B202: Operating
B203: Title I-A 6501
... 57 more rows

Sheet Carryover (hidden)
C1: 3 | D1: 4 | E1: 5 | F1: 6 | G1: 7 | H1: 8 | I1: 9 | J1: 10 | K1: 11 | L1: 12 | M1: 13 | N1: 14 | O1: 15 | P1: 16 | Q1: 17 | R1: 18 | S1: 19 | T1: 20 | U1: 21 | V1: 22 | W1: 23
A2: District LEA | B2: District Name | C2: ALE: 2275 | D2: ELL: 2276 | E2: ESA: 2281 | F2: PD: 2223 | G2: ABC | H2: Medicaid: 6750 | I2: ARMAC: 6752 | J2: EIDT: 2262 | K2: Grant | L2: GT Required Expenditure | M2: Operating | N2: Fed Early Childhood SPED: 6710 | O2: State Early Childhood SPED: 2260 | P2: Title I - A: 6501 | Q2: Title I - C: 6502 | R2: Title I - D: 6510 | S2: Title II: 6756 | T2: Title III-ESOL: 6761 | U2: Title IV: 6786 | V2: Title V: 6784 | W2: IDEA Part B: 6702
A3: 9999 | B3: Sample District | C3: 5665.78 | D3: 11908.99 | E3: 42761.41 | F3: 0 | J3: 0 | N3: 28.69 | O3: 0 | P3: 20803.91 | Q3: 0 | R3: 0 | S3: 4518.98 | T3: 11657.27 | U3: 4250.38 | W3: 51686.79
A4: 0101 | B4: DEWITT | C4: 0 | D4: 0 | E4: 19331.92 | F4: 0 | J4: 0 | N4: 0 | O4: 0 | P4: 70540.68 | Q4: 0 | R4: 0 | S4: 0 | T4: 6095.25 | U4: 0 | V4: 2615.21 | W4: 113.85
A5: 0104 | B5: STUTTGART | C5: 0 | D5: 0 | E5: 71425.7 | F5: 63684.55 | J5: 0 | N5: 0 | O5: 0 | P5: 63064.59 | Q5: 0 | R5: 0 | S5: 93997.42 | T5: 0 | U5: 10272.04 | V5: 3678.13 | W5: 70422.75
A6: 0201 | B6: CROSSETT | C6: 0 | D6: 0 | E6: 38352.29 | F6: 27924.89 | J6: 0 | N6: 0 | O6: 0 | P6: 75777.8 | Q6: 0 | R6: 0 | S6: 8115.19 | T6: 0 | U6: 0 | V6: 3545.31 | W6: 16274
A7: 0203 | B7: HAMBURG | C7: 0 | D7: 13168.68 | E7: 9314.38 | F7: 35973.61 | J7: 0 | N7: 0 | O7: 0 | P7: 31251.62 | Q7: 13298.83 | R7: 0 | S7: 27024.5 | T7: 2801.62 | U7: 0 | V7: 3551.72 | W7: 70139.31
A8: 0302 | B8: COTTER | C8: 0 | D8: 1732 | E8: 31769.52 | F8: 12652.06 | J8: 10.38 | N8: 3.06 | O8: 29.23 | P8: 150209.03 | Q8: 0 | R8: 0 | S8: 0 | T8: 0 | U8: 0 | V8: 75.82 | W8: 0
A9: 0303 | B9: MOUNTAIN HOME | C9: 0 | D9: 8299.85 | E9: 788.89 | F9: 50982.12 | J9: 0 | N9: 0 | O9: 0 | P9: 400032.56 | Q9: 0 | R9: 0 | S9: 22670.36 | T9: 0 | U9: 0 | W9: 11567.59
A10: 0304 | B10: NORFORK | C10: 0 | D10: 704 | E10: 0 | F10: 0 | J10: 0 | N10: 0 | O10: 0 | P10: 63141.98 | Q10: 0 | R10: 0 | S10: 0 | T10: 0 | U10: 16290.72 | W10: 12263.7
A11: 0401 | B11: BENTONVILLE | C11: 137649.84 | D11: 7893.37 | E11: 296799.08 | F11: 50331.15 | J11: 0 | N11: 1280.81 | O11: 0.82 | P11: 230008.43 | Q11: 0 | R11: 29654.39 | S11: 266685.88 | T11: 237926.36 | U11: 119252.81 | W11: 216594.88
A12: 0402 | B12: DECATUR | C12: 5665.78 | D12: 11908.99 | E12: 42761.41 | F12: 0 | J12: 0 | N12: 28.69 | O12: 0 | P12: 20803.91 | Q12: 0 | R12: 0 | S12: 4518.98 | T12: 11657.27 | U12: 4250.38 | W12: 51686.79
A13: 0404 | B13: GRAVETTE | C13: 5870.63 | D13: 2598.85 | E13: 115897.24 | F13: 3096.17 | J13: 10287.85 | N13: 0 | O13: 0 | P13: 0 | Q13: 0 | R13: 0 | S13: 30717.14 | T13: 4717.09 | U13: 18561.84 | W13: 191253.69
A14: 0405 | B14: ROGERS | C14: 0 | D14: 0 | E14: 27196.01 | F14: 0 | J14: 3670.92 | N14: 2448.73 | O14: 12954.22 | P14: 18459.17 | Q14: 0 | R14: 0 | S14: 46663.07 | T14: 0 | U14: 48542.96 | W14: 75030.2
A15: 0406 | B15: SILOAM SPRINGS | C15: 0 | D15: 0 | E15: 615348.9 | F15: 100000 | J15: 0 | N15: 0 | O15: 0 | P15: 245380 | Q15: 0 | R15: 0 | S15: 176599.09 | T15: 235164.66 | U15: 1635.9 | W15: 249657.64
A16: 0407 | B16: PEA RIDGE | C16: 24929.33 | D16: 66414.58 | E16: 185740.82 | F16: 53502.79 | J16: 0 | N16: 0 | O16: 0 | P16: 116441.61 | Q16: 0.34 | R16: 0 | S16: 34060.51 | T16: 43772.13 | U16: 731.86 | W16: 0
A17: 0440 | B17: ARKANSAS ARTS ACADEMY | C17: 0 | D17: 3500.73 | E17: 31847.84 | F17: 11251.31 | J17: 0 | N17: 0 | O17: 0 | P17: 59762.91 | Q17: 0 | R17: 0 | S17: 7124.65 | T17: 0 | U17: 18990.04 | W17: 136510.3
A18: 0442 | B18: FOUNDERS CLASSICAL ACADEMY | C18: 0 | D18: 26838.98 | E18: 28710.96 | F18: 29.45 | J18: 6396.17 | N18: 13422.24 | O18: 19103.79 | P18: 33097.17 | Q18: 0 | R18: 0 | S18: 1337.55 | T18: 0 | U18: 0 | W18: 4085.19
A19: 0444 | B19: ARKANSAS CONNECTIONS ACADEMY | C19: 0 | D19: 692.3 | E19: 43973.83 | F19: 15423.13 | J19: 0 | N19: 5666.02 | O19: 2173.6 | P19: 3968.07 | Q19: 0 | R19: 0 | S19: 0 | T19: 1886.51 | U19: 29459.07 | W19: 40971.68
A20: 0445 | B20: HOPE ACADEMY | C20: 0 | D20: 10992.86 | E20: 0 | F20: 42989.66 | J20: 0 | N20: 0 | O20: 0 | P20: 1007.11 | Q20: 0 | R20: 0 | S20: 0 | T20: 0 | U20: 0 | W20: 0
A21: 0446 | B21: SCHOOL FOR ADVANCED STUDIES | C21: 98770 | D21: 1127.17 | E21: 0 | F21: 1465.86 | J21: 0 | N21: 0 | O21: 0 | P21: 0 | Q21: 0 | R21: 0 | S21: 0 | T21: 0 | U21: 0 | W21: 1941.33
A22: 0448 | B22: GARFIELD SCHOLARS ACADEMY | C22: 0 | D22: 0 | E22: 0 | F22: 0 | J22: 0 | N22: 0 | O22: 0 | P22: 0 | Q22: 0 | R22: 0 | S22: 0 | T22: 0 | U22: 1754.27 | W22: 0
A23: 0501 | B23: ALPENA | C23: 0 | D23: 0 | E23: 0 | F23: 0 | J23: 0 | N23: 0 | O23: 0 | P23: 0 | Q23: 0 | R23: 0 | S23: 0 | T23: 0 | U23: 0 | W23: 0
A24: 0502 | B24: BERGMAN | C24: 11988.02 | D24: 11309.61 | E24: 0 | F24: 175.59 | J24: 0 | N24: 1.87 | O24: 0 | P24: 122561.3 | Q24: 0 | R24: 0 | S24: 3088.7 | T24: 0 | U24: 9733.67 | W24: 268.19
A25: 0503 | B25: HARRISON | C25: 10593.39 | D25: 484.13 | E25: 22755.06 | F25: 5.95 | J25: 0 | N25: 0 | O25: 0 | P25: 18874.7 | Q25: 0 | R25: 0 | S25: 2294.28 | T25: 0 | U25: 0 | W25: 0
A26: 0504 | B26: OMAHA | C26: 0 | D26: 0 | E26: 0 | F26: 0 | J26: 0 | N26: 0 | O26: 0 | P26: 5408.77 | Q26: 0 | R26: 0 | S26: 0 | T26: 0 | U26: 0 | W26: 0
A27: 0505 | B27: VALLEY SPRINGS | C27: 7.6 | D27: 53.41 | E27: 8219.46 | F27: 12109.25 | J27: 0 | N27: 1.61 | O27: 0 | P27: 31686.78 | Q27: 0 | R27: 0 | S27: 1719.5 | T27: 0 | U27: 0 | W27: 327.82
A28: 0506 | B28: LEAD HILL | C28: 0 | D28: 3009.78 | E28: 0 | F28: 66754.14 | J28: 732.35 | N28: 0 | O28: 0 | P28: 3127.72 | Q28: 0 | R28: 0 | S28: 5390.59 | T28: 0 | U28: 7900.46 | W28: 0
A29: 0601 | B29: HERMITAGE | C29: 0 | D29: 3991 | E29: 8615.09 | F29: 0 | J29: 255.51 | N29: 1686.37 | O29: 0 | P29: 8148.29 | Q29: 0 | R29: 0 | S29: 813.52 | T29: 0 | U29: 92.87 | W29: 0
A30: 0602 | B30: WARREN | C30: 32663.53 | D30: 0 | E30: 25662.97 | F30: 0 | J30: 0 | N30: 0 | O30: 0 | P30: 36865.7 | Q30: 96170.22 | R30: 0 | S30: 0 | T30: 0 | U30: 0 | W30: 29066.8
A31: 0701 | B31: HAMPTON | C31: 4299.13 | D31: 135366.85 | E31: 100000 | F31: 12325.82 | J31: 0 | N31: 0 | O31: 0 | P31: 167825.57 | Q31: 118615.58 | R31: 0 | S31: 0 | T31: 21880.98 | U31: 23394.57 | V31: 3380.55 | W31: 337322.61
A32: 0801 | B32: BERRYVILLE | C32: 0 | D32: 0 | E32: 1240.43 | F32: 0 | J32: 0 | N32: 0 | O32: 0 | P32: 12102.99 | Q32: 0 | R32: 0 | S32: 834.92 | T32: 0 | U32: 0 | W32: 1160.79
A33: 0802 | B33: EUREKA SPRINGS | C33: 2854.24 | D33: 132.48 | E33: 268189.47 | F33: 7469.96 | J33: 0 | N33: 0 | O33: 0.02 | P33: 59576.66 | Q33: 18187.38 | R33: 0 | S33: 40576.06 | T33: 2573.98 | U33: 0 | V33: 2335.85 | W33: 1760.89
A34: 0803 | B34: GREEN FOREST | C34: 0 | D34: 0 | E34: 0 | F34: 0 | J34: 0 | N34: 0 | O34: 0 | P34: 6230.57 | Q34: 0 | R34: 0 | S34: 0 | T34: 0 | U34: 0 | V34: 610.38 | W34: 0
A35: 0901 | B35: DERMOTT | C35: 253.68 | D35: 1851.86 | E35: 7352.62 | F35: 12453.18 | J35: 0 | N35: 0 | O35: 0 | P35: 67451.01 | Q35: 41540.63 | R35: 0 | S35: 22152.3 | T35: 69406.07 | U35: 3830.34 | V35: 3145.18 | W35: 15178.47
A36: 0903 | B36: LAKESIDE | C36: 11207.01 | D36: 3572.57 | E36: 74500 | F36: 12980 | J36: 0 | N36: 0 | O36: 0.01 | P36: 138361.53 | Q36: 0 | R36: 0 | S36: 864.28 | T36: 0 | U36: 0 | V36: 462.21 | W36: 5813.47
A37: 1002 | B37: ARKADELPHIA | C37: 29.05 | D37: 107.52 | E37: 5706.09 | F37: 35600.86 | J37: 0 | N37: 0 | O37: 0 | P37: 143804.8 | Q37: 0 | R37: 0 | S37: 98090.03 | T37: 0 | U37: 20705.61 | V37: 2033.92 | W37: 83.19
A38: 1003 | B38: GURDON | C38: 0 | D38: 9799.07 | E38: 12841.01 | F38: 12097.75 | J38: 0 | N38: 0 | O38: 0 | P38: 80663.72 | Q38: 0 | R38: 0 | S38: 0 | T38: 0 | U38: 0 | V38: 4174.62 | W38: 19860.67
A39: 1101 | B39: CORNING | C39: 0 | D39: 0 | E39: 19362.43 | F39: 2035.74 | J39: 0 | N39: 0 | O39: 0.01 | P39: 15515.86 | Q39: 0 | R39: 0 | S39: 0 | T39: 0 | U39: 0 | V39: 1425.08 | W39: 18615.26
A40: 1104 | B40: PIGGOTT | C40: 7298.83 | D40: 77.88 | E40: 63129.38 | F40: 172.65 | J40: 0 | N40: 0 | O40: 0 | P40: 56854.11 | Q40: 0 | R40: 0 | S40: 0 | T40: 0 | U40: 2187.21 | V40: 1912.77 | W40: 89122.89
A41: 1106 | B41: RECTOR | C41: 12171.54 | D41: 5013.23 | E41: 26149.81 | F41: 15339.41 | J41: 0 | N41: 0 | O41: 0 | P41: 66357.96 | Q41: 0 | R41: 0 | S41: 0 | T41: 0 | U41: 0 | V41: 1781.9 | W41: 18045.35
A42: 1201 | B42: CONCORD | C42: 0 | D42: 0 | E42: 0 | F42: 0 | J42: 0 | N42: 0 | O42: 0 | P42: 3983.25 | Q42: 0 | R42: 0 | S42: 0 | T42: 0 | U42: 0 | W42: 72862.68
A43: 1202 | B43: HEBER SPRINGS | C43: 0 | D43: 2562 | E43: 12823.71 | F43: 0 | J43: 0 | N43: 0 | O43: 0 | P43: 26756.73 | Q43: 0 | R43: 0 | S43: 0 | T43: 0 | U43: 0 | W43: 4900.81
A44: 1203 | B44: QUITMAN | C44: 0 | D44: 0 | E44: 20307.39 | F44: 0.45 | J44: 0 | N44: 0 | O44: 0 | P44: 31966.01 | Q44: 0 | R44: 0 | S44: 0 | T44: 0 | U44: 0 | V44: 2031.85 | W44: 49863.73
A45: 1204 | B45: WEST SIDE | C45: 25474 | D45: 9912.55 | E45: 14765.77 | F45: 0 | J45: 0 | N45: 3.74 | O45: 0 | P45: 46958.27 | Q45: 0 | R45: 0 | S45: 0 | T45: 0 | U45: 0 | V45: 21.37 | W45: 62893.62
A46: 1304 | B46: WOODLAWN | C46: 0 | D46: 3339 | E46: 579.32 | F46: 0 | J46: 0 | N46: 0 | O46: 0 | P46: 73557.62 | Q46: 0 | R46: 0 | S46: 48884.97 | T46: 0 | U46: 14665.56 | W46: 50846.76
A47: 1305 | B47: CLEVELAND COUNTY | C47: 1133.17 | D47: 7870.33 | E47: 2828.42 | F47: 0 | J47: 800.87 | N47: 27.67 | O47: 0 | P47: 3326.05 | Q47: 0 | R47: 0 | S47: 3143.89 | T47: 0 | U47: 0 | W47: 93250.13
A48: 1402 | B48: MAGNOLIA | C48: 880.97 | D48: 0 | E48: 58446.51 | F48: 15017.56 | J48: 0 | N48: 0 | O48: 0 | P48: 91361.76 | Q48: 0 | R48: 0 | S48: 0 | T48: 0 | U48: 0 | V48: 909.81 | W48: 0
A49: 1408 | B49: EMERSON-TAYLOR-BRADLEY | C49: 90040.36 | D49: 8413.96 | E49: 221362.01 | F49: 29439.08 | J49: 40075.9 | N49: 60363.79 | O49: 66246.94 | P49: 92001.83 | Q49: 0 | R49: 0 | S49: 9001.91 | T49: 0 | U49: 2685.81 | V49: 5861.05 | W49: 48902.07
A50: 1503 | B50: NEMO VISTA | C50: 0 | D50: 0 | E50: 14565.71 | F50: 17674.22 | J50: 0 | N50: 159.04 | O50: 0 | P50: 31005.48 | Q50: 0 | R50: 0 | S50: 182.07 | T50: 0 | U50: 116.33 | V50: 2654.94 | W50: 0
A51: 1505 | B51: WONDERVIEW | C51: 0 | D51: 4171.95 | E51: 14826.61 | F51: 13726.33 | J51: 0 | N51: 0 | O51: 0 | P51: 7740.36 | Q51: 0 | R51: 0 | S51: 0 | T51: 0 | U51: 10584 | W51: 2145.94
A52: 1507 | B52: SO CONWAY COUNTY | C52: 0 | D52: 0 | E52: 9525.12 | F52: 405.41 | J52: 0 | N52: 0 | O52: 0 | P52: 16106.41 | Q52: 0 | R52: 0 | S52: 0 | T52: 0 | U52: 0 | W52: 5499.48
A53: 1601 | B53: BAY | C53: 0 | D53: 0 | E53: 0 | F53: 60653.63 | J53: 0 | N53: 0 | O53: 0 | P53: 112579.56 | Q53: 0 | R53: 0 | S53: 0 | T53: 0 | U53: 0 | V53: 5398.88 | W53: 83626.3
A54: 1602 | B54: WESTSIDE CONSOLIDATED | C54: 0 | D54: 5018.41 | E54: 29048.13 | F54: 6962.11 | J54: 0 | N54: 0 | O54: 0 | P54: 59881.62 | Q54: 0 | R54: 0 | S54: 0 | T54: 0 | U54: 0 | W54: 60744.62
A55: 1603 | B55: BROOKLAND | C55: 0 | D55: 17941.02 | E55: 66411.15 | F55: 22903.89 | J55: 0 | N55: 0 | O55: 0 | P55: 122924.93 | Q55: 0 | R55: 0 | S55: 0 | T55: 0 | U55: 0 | V55: 51.59 | W55: 97208.6
A56: 1605 | B56: BUFFALO ISLAND CENTRAL | C56: 0 | D56: 21568.65 | E56: 2223.3 | F56: 19839.59 | J56: 0 | N56: 0 | O56: 0 | P56: 6876.89 | Q56: 0 | R56: 0 | S56: 30821.34 | T56: 0 | U56: 18439.09 | W56: 23955.52
A57: 1608 | B57: JONESBORO | C57: 0 | D57: 0 | E57: 28819.61 | F57: 2864.8 | J57: 0 | N57: 0 | O57: 0.01 | P57: 62783.16 | Q57: 14512.09 | R57: 0 | S57: 13287.64 | T57: 0 | U57: 0 | V57: 1617.73 | W57: 22411.62
A58: 1611 | B58: NETTLETON | C58: 209054 | D58: 9626.66 | E58: 501490.76 | F58: 298281.58 | J58: 0 | N58: 0 | O58: 0.01 | P58: 537599.24 | Q58: 0 | R58: 0 | S58: 0 | T58: 38082.61 | U58: 0 | W58: 207372.62
A59: 1612 | B59: VALLEY VIEW | C59: 0 | D59: 6407.94 | E59: 330050.92 | F59: 17613.07 | J59: 0 | N59: 0.01 | O59: 0 | P59: 570862.8 | Q59: 1965.52 | R59: 0 | S59: 0 | T59: 9786.94 | U59: 0 | W59: 35489.21
A60: 1613 | B60: RIVERSIDE | C60: 0 | D60: 0 | E60: 0 | F60: 19671.82 | J60: 0 | N60: 0 | O60: 0 | P60: 11281.52 | Q60: 0 | R60: 0 | S60: 0 | T60: 4998.97 | U60: 0 | W60: 17352.81
A61: 1701 | B61: ALMA | C61: 0 | D61: 0 | E61: 10336.77 | F61: 5000 | J61: 1367.97 | N61: 1809.8 | O61: 3852.09 | P61: 19025.54 | Q61: 0 | R61: 0 | S61: 0 | T61: 0 | U61: 0 | V61: 52.86 | W61: 0
A62: 1702 | B62: CEDARVILLE | C62: 47369.86 | D62: 7703.2 | E62: 25377.9 | F62: 83357.44 | J62: 0 | N62: 0 | O62: 0 | P62: 34020.14 | Q62: 0 | R62: 0 | S62: 286.89 | T62: 0 | U62: 4596.93 | W62: 246392.55
A63: 1703 | B63: MOUNTAINBURG | C63: 21440.81 | D63: 5071.08 | E63: 44114.47 | F63: 14612.25 | J63: 0 | N63: 0 | O63: 1424.3 | P63: 54030.13 | Q63: 0 | R63: 0 | S63: 0 | T63: 0 | U63: 0 | V63: 1674.23 | W63: 17535.45
A64: 1704 | B64: MULBERRY/PLEASANT VIEW BI-COUNTY | C64: 2849.46 | D64: 1627.86 | E64: 31115.33 | F64: 7889.57 | J64: 0 | N64: 0 | O64: 0 | P64: 13720.32 | Q64: 0 | R64: 0 | S64: 0 | T64: 0 | U64: 0 | V64: 1351.37 | W64: 16637.45
A65: 1705 | B65: VAN BUREN | C65: 1477.54 | D65: 4863.75 | E65: 6425.24 | F65: 14516.66 | J65: 0 | N65: 0 | O65: 0 | P65: 7531.39 | Q65: 0 | R65: 0 | S65: 0 | T65: 0 | U65: 0 | V65: 41.28 | W65: 8260.09
A66: 1802 | B66: EARLE | C66: 6424.6 | D66: 0 | E66: 231463.03 | F66: 59192.52 | J66: 255.18 | N66: 0 | O66: 3953.19 | P66: 211068.22 | Q66: 8788.89 | R66: 0 | S66: 0 | T66: 33308.36 | U66: 0 | W66: 101277.06
A67: 1803 | B67: WEST MEMPHIS | C67: 374 | D67: 3877.82 | E67: 7077.21 | F67: 4583.44 | J67: 824.03 | N67: 1562.71 | O67: 2320.02 | P67: 86982.67 | Q67: 0 | R67: 114539.44 | S67: 17148.12 | T67: 0 | U67: 33851.67 | V67: 579.45 | W67: 0
A68: 1804 | B68: MARION | C68: 0 | D68: 0 | E68: 376583.98 | F68: 0 | J68: 0 | N68: 0 | O68: 0 | P68: 1333219.026 | Q68: 0 | R68: 5134.91 | S68: 249631.5 | T68: 0 | U68: 0 | W68: 741729.64
A69: 1901 | B69: CROSS COUNTY | C69: 0 | D69: 0 | E69: 237493.43 | F69: 273730.38 | J69: 0 | N69: 0 | O69: 0 | P69: 718872.6675 | Q69: 0 | R69: 0 | S69: 245377.92 | T69: 927.34 | U69: 0 | W69: 434901.98
A70: 1905 | B70: WYNNE | C70: 1.61 | D70: 0 | E70: 43839.12 | F70: 1409.79 | J70: 0 | N70: 0.02 | O70: 0 | P70: 56454.91 | Q70: 0 | R70: 0 | S70: 1315.1 | T70: 0 | U70: 3729.27 | V70: 1384.28 | W70: 10490.99
A71: 2002 | B71: FORDYCE | C71: 6086.46 | D71: 33447.11 | E71: 94325.06 | F71: 37618.93 | J71: 0 | N71: 0 | O71: 0 | P71: 104422.02 | Q71: 0 | R71: 364112.3 | S71: 0 | T71: 0 | U71: 0 | V71: 5777.35 | W71: 229970.73
A72: 2104 | B72: DUMAS | C72: 16156.33 | D72: 3660 | E72: 0 | F72: 6457.71 | J72: 0 | N72: 0 | O72: 0 | P72: 19320.61 | Q72: 0 | R72: 0 | S72: 0 | T72: 0 | U72: 0 | V72: 1692.68 | W72: 0
A73: 2105 | B73: MCGEHEE | C73: 11693.55 | D73: 1279.12 | E73: 18828.04 | F73: 3944.82 | J73: 0 | N73: 0 | O73: 0 | P73: 75862.55 | Q73: 13531.84 | R73: 0 | S73: 3771.01 | T73: 0 | U73: 0 | V73: 2259.68 | W73: 10107.97
A74: 2202 | B74: DREW CENTRAL | C74: 15483.28 | D74: 884.85 | E74: 119609.04 | F74: 45692.52 | J74: 0 | N74: 0 | O74: 0 | P74: 88222.38 | Q74: 0 | R74: 0 | S74: 31931.51 | T74: 0 | U74: 0 | V74: 2562.01 | W74: 13583.21
A75: 2203 | B75: MONTICELLO | C75: 0 | D75: 0 | E75: 89272.94 | F75: 63502.45 | J75: 0 | N75: 0 | O75: 0 | P75: 65249.62 | Q75: 0 | R75: 0 | S75: 26245.03 | T75: 0 | U75: 0 | V75: 1191.86 | W75: 15326.85
A76: 2301 | B76: CONWAY | C76: 7065.31 | D76: 1753.11 | E76: 12693.42 | F76: 5771.1 | J76: 0 | N76: 0 | O76: 0 | P76: 135814.34 | Q76: 0 | R76: 50136.63 | S76: 6386.36 | T76: 0 | U76: 2851.35 | V76: 3834.11 | W76: 1716.07
A77: 2303 | B77: GREENBRIER | C77: 0 | D77: 0 | E77: 0 | F77: 12896.41 | J77: 13385.23 | N77: 15858.62 | O77: 22686.9 | P77: 249989.64 | Q77: 353.66 | R77: 0 | S77: 69849.5 | T77: 90045.63 | U77: 100715.13 | W77: 0
A78: 2304 | B78: GUY-PERKINS | C78: 3272.98 | D78: 2792.68 | E78: 108212.37 | F78: 65898.53 | J78: 0 | N78: 0 | O78: 0 | P78: 67580.46 | Q78: 0 | R78: 0 | S78: 44339.99 | T78: 0 | U78: 0 | W78: 38121.42
A79: 2305 | B79: MAYFLOWER | C79: 8675 | D79: 1785 | E79: 895.75 | F79: 1.64 | J79: 0 | N79: 0 | O79: 0 | P79: 3086.06 | Q79: 0 | R79: 0 | S79: 0 | T79: 0 | U79: 0 | W79: 0
A80: 2306 | B80: MOUNT VERNON/ENOLA | C80: 0 | D80: 3798.25 | E80: 1344.8 | F80: 208.44 | J80: 0 | N80: 0 | O80: 0 | P80: 25750.3 | Q80: 0 | R80: 0 | S80: 0 | T80: 0 | U80: 644.48 | W80: 11228.43
A81: 2307 | B81: VILONIA | C81: 0 | D81: 0 | E81: 701.97 | F81: 4179.53 | J81: 0 | N81: 0 | O81: 0 | P81: 15312.99 | Q81: 0 | R81: 0 | S81: 0 | T81: 0 | U81: 0 | W81: 10029.92
A82: 2402 | B82: CHARLESTON | C82: 3552.42 | D82: 71.61 | E82: 83421.26 | F82: 52698.67 | J82: 0 | N82: 0 | O82: 0 | P82: 13329.07 | Q82: 0 | R82: 0 | S82: 4625.79 | T82: 0 | U82: 28755.04 | W82: 74736.65
A83: 2403 | B83: COUNTY LINE | C83: 17376.81 | D83: 6037.73 | E83: 12908.76 | F83: 2369.68 | J83: 6544.65 | N83: 39.46 | O83: 0 | P83: 48293.18 | Q83: 0 | R83: 4044.43 | S83: 0 | T83: 0 | U83: 0 | V83: 0 | W83: 5233.72
A84: 2404 | B84: OZARK | C84: 0 | D84: 4071.37 | E84: 61492.64 | F84: 169.52 | J84: 17168.58 | N84: 0 | O84: 12063.04 | P84: 24695.44 | Q84: 0 | R84: 0 | S84: 0 | T84: 0 | U84: 0 | V84: 0 | W84: 2222.45
A85: 2501 | B85: MAMMOTH SPRING | C85: 10668.46 | D85: 103.65 | E85: 36104.5 | F85: 17234.71 | J85: 0 | N85: 12691.94 | O85: 0 | P85: 57166.51 | Q85: 0 | R85: 0 | S85: 0 | T85: 0 | U85: 0 | V85: 4095.56 | W85: 118163.75
A86: 2502 | B86: SALEM | C86: 0 | D86: 732 | E86: 1126.99 | F86: 0 | J86: 0 | N86: 0 | O86: 0 | P86: 6024.5 | Q86: 0 | R86: 0 | S86: 1001.14 | T86: 0 | U86: 91.43 | V86: 651.41 | W86: 10471.02
A87: 2503 | B87: VIOLA | C87: 6288.09 | D87: 7608.27 | E87: 7643.5 | F87: 376.59 | J87: 0.02 | N87: 0.03 | O87: 0.01 | P87: 115279.7 | Q87: 0 | R87: 0 | S87: 0 | T87: 0 | U87: 0 | V87: 1946.07 | W87: 232593.62
A88: 2601 | B88: CUTTER-MORNING STAR | C88: 0 | D88: 0 | E88: 43759.58 | F88: 46.01 | J88: 0 | N88: 17.29 | O88: 0 | P88: 26736.27 | Q88: 0 | R88: 0 | S88: 0 | T88: 0 | U88: 3128.72 | V88: 377.69 | W88: 0
A89: 2602 | B89: FOUNTAIN LAKE | C89: 1917.83 | D89: 49413.87 | E89: 26024.01 | F89: 35452.45 | J89: 0 | N89: 0 | O89: 0 | P89: 141589.09 | Q89: 0 | R89: 0 | S89: 16931.99 | T89: 0 | U89: 0 | V89: 65.1 | W89: 0
A90: 2603 | B90: HOT SPRINGS | C90: 0 | D90: 10486.24 | E90: 6633.79 | F90: 47400 | J90: 5601.78 | N90: 12561.27 | O90: 7105.16 | P90: 91919.56 | Q90: 0 | R90: 5329.74 | S90: 70945.91 | T90: 0 | U90: 34478.32 | V90: 38.88 | W90: 179704.75
A91: 2604 | B91: JESSIEVILLE | C91: 0 | D91: 0 | E91: 423139.8 | F91: 7299.55 | J91: 0 | N91: 240.74 | O91: 0 | P91: 234581.77 | Q91: 0 | R91: 0 | S91: 6481.37 | T91: 52493.99 | U91: 36199.69 | V91: 0 | W91: 255527.87
A92: 2605 | B92: LAKE HAMILTON | C92: 0 | D92: 0 | E92: 2215.42 | F92: 9306.79 | J92: 0 | N92: 0 | O92: 0 | P92: 206765.53 | Q92: 0 | R92: 0 | S92: 28576.63 | T92: 0 | U92: 0 | V92: 82.99 | W92: 15669.23
A93: 2606 | B93: LAKESIDE | C93: 0 | D93: 121157.16 | E93: 103256.26 | F93: 177336.8 | J93: 16349.9 | N93: 186.83 | O93: 40986.94 | P93: 200557.74 | Q93: 0 | R93: 0 | S93: 106069.06 | T93: 9543.16 | U93: 0 | V93: 128.18 | W93: 87632.43
A94: 2607 | B94: MOUNTAIN PINE | C94: 0 | D94: 6507.01 | E94: 1645.27 | F94: 37821.76 | J94: 0 | N94: 0 | O94: 0 | P94: 55841.82 | Q94: 0 | R94: 0 | S94: 0 | T94: 18844.04 | U94: 0 | V94: 0 | W94: 0
A95: 2703 | B95: POYEN | C95: 39064.84 | D95: 13623.71 | E95: 42119.3 | F95: 10524.65 | J95: 0 | N95: 0 | O95: 0 | P95: 107644.76 | Q95: 0 | R95: 0 | S95: 0 | T95: 0 | U95: 0 | V95: 885.97 | W95: 1208.27
A96: 2705 | B96: SHERIDAN | C96: 797.87 | D96: 3412.88 | E96: 7273.87 | F96: 3809.32 | J96: 0 | N96: 0 | O96: 0 | P96: 6412.25 | Q96: 0 | R96: 0 | S96: 0 | T96: 0 | U96: 0 | V96: 0 | W96: 12.58
A97: 2803 | B97: MARMADUKE | C97: 0 | D97: 0 | E97: 0 | F97: 29856.78 | J97: 0 | N97: 0 | O97: 0 | P97: 40024.82 | Q97: 0 | R97: 0 | S97: 10565.05 | T97: 666.24 | U97: 3775.27 | V97: 0 | W97: 28089.78
A98: 2807 | B98: GREENE COUNTY TECH | C98: 308.37 | D98: 0 | E98: 8308.13 | F98: 6853.06 | J98: 0 | N98: 0 | O98: 0 | P98: 26795.94 | Q98: 0 | R98: 12954.34 | S98: 175.94 | T98: 0 | U98: 0 | V98: 592.3 | W98: 3841.99
A99: 2808 | B99: PARAGOULD | C99: 0 | D99: 6622.31 | E99: 18580.38 | F99: 14917.16 | J99: 83096.81 | N99: 16530.79 | O99: 16222.88 | P99: 47883.95 | Q99: 0 | R99: 0 | S99: 15095.96 | T99: 15171.55 | U99: 0 | V99: 0 | W99: 131786.16
A100: 2901 | B100: BLEVINS | C100: 0 | D100: 0 | E100: 0 | F100: 0 | J100: 20710.01 | N100: 31486.22 | O100: 0 | P100: 171019.89 | Q100: 8375.2855 | R100: 0 | S100: 51607.66 | T100: 24350.64 | U100: 0 | V100: 2855.28 | W100: 0
A101: 2903 | B101: HOPE | C101: 0 | D101: 0 | E101: 13727.31 | F101: 0 | J101: 0 | N101: 0 | O101: 22830.51 | P101: 51069.43 | Q101: 0 | R101: 0 | S101: 0 | T101: 0 | U101: 0 | V101: 413.07 | W101: 35963.23
A102: 2906 | B102: SPRING HILL | C102: 0 | D102: 0 | E102: 189696.92 | F102: 44675.81 | J102: 0 | N102: 0 | O102: 0 | P102: 1643.24 | Q102: 0 | R102: 0 | S102: 133.99 | T102: 71675.14 | U102: 612.33 | V102: 4998.86 | W102: 195043.16
A103: 3001 | B103: BISMARCK | C103: 0 | D103: 4249.16 | E103: 24111.85 | F103: 799.49 | J103: 15612.87 | N103: 0 | O103: 0 | P103: 6119.67 | Q103: 0 | R103: 0 | S103: 1219.09 | T103: 0 | U103: 1592.56 | V103: 0 | W103: 29184.71
A104: 3002 | B104: GLEN ROSE | C104: 1816.58 | D104: 94.84 | E104: 81170.96 | F104: 20131.78 | J104: 0 | N104: 4.15 | O104: 0 | P104: 30788.97 | Q104: 0 | R104: 0 | S104: 38165.09 | T104: 0 | U104: 8851.4 | V104: 1331.77 | W104: 25202.42
A105: 3003 | B105: MAGNET COVE | C105: 16019.18 | D105: 1786.45 | E105: 0 | F105: 1139.24 | J105: 0 | N105: 0 | O105: 0 | P105: 6092.59 | Q105: 0 | R105: 0 | S105: 0 | T105: 0 | U105: 0 | V105: 100.67 | W105: 2140.64
A106: 3004 | B106: MALVERN | C106: 0 | D106: 0 | E106: 0 | F106: 0 | J106: 0 | N106: 0 | O106: 0 | P106: 0 | Q106: 0 | R106: 0 | S106: 0 | T106: 0 | U106: 0 | V106: 0 | W106: 4.4
A107: 3005 | B107: OUACHITA | C107: 5895.53 | D107: 19147.8 | E107: 214600.01 | F107: 92089.56 | J107: 0 | N107: 0 | O107: 0 | P107: 144490.28 | Q107: 0 | R107: 0 | S107: 183947.52 | T107: 12710.54 | U107: 63667.83 | V107: 0 | W107: 196930.54
A108: 3102 | B108: DIERKS | C108: 0 | D108: 0 | E108: 0 | F108: 1027.55 | J108: 0 | N108: 0 | O108: 0 | P108: 356.54 | Q108: 0 | R108: 0 | S108: 0 | T108: 0 | U108: 0 | V108: 0 | W108: 0
A109: 3104 | B109: MINERAL SPRINGS | C109: 6956.74 | D109: 0 | E109: 46746.99 | F109: 15304.61 | J109: 0 | N109: 0 | O109: 0 | P109: 38985.7 | Q109: 0 | R109: 0 | S109: 0 | T109: 0 | U109: 0 | V109: 0 | W109: 9944.66
A110: 3105 | B110: NASHVILLE | C110: 7210.36 | D110: 12282.7 | E110: 24703.72 | F110: 2166.71 | J110: 0 | N110: 0 | O110: 0 | P110: 46709.06 | Q110: 0 | R110: 0 | S110: 3080.4 | T110: 0 | U110: 0 | V110: 873.82 | W110: 9212.3
A111: 3201 | B111: BATESVILLE | C111: 24179.7 | D111: 14622.03 | E111: 151443.77 | F111: 48861.51 | J111: 0 | N111: 0 | O111: 0 | P111: 125941.09 | Q111: 19025.93 | R111: 0 | S111: 3408.46 | T111: 6914.14 | U111: 44806.57 | V111: 2767.21 | W111: 93108.74
A112: 3209 | B112: SOUTHSIDE | C112: 0 | D112: 83121.59 | E112: 16402.2 | F112: 39959.91 | J112: 11154.98 | N112: 784.85 | O112: 17385.25 | P112: 259067.58 | Q112: 32813.5015 | R112: 0 | S112: 147985 | T112: 17009.4 | U112: 0 | V112: 4185.28 | W112: 57261.16
A113: 3211 | B113: MIDLAND | C113: 0 | D113: 13208.66 | E113: 42541.51 | F113: 4376.23 | J113: 0 | N113: 0 | O113: 0 | P113: 39520.35 | Q113: 0 | R113: 0 | S113: 6122.98 | T113: 0 | U113: 5210.59 | V113: 2746.41 | W113: 30800.49
A114: 3212 | B114: CEDAR RIDGE | C114: 173.12 | D114: 0 | E114: 10805.68 | F114: 3871.2 | J114: 69.58 | N114: 1 | O114: 0 | P114: 17013.55 | Q114: 0 | R114: 0 | S114: 133.75 | T114: 0 | U114: 11929.34 | V114: 0 | W114: 0
A115: 3301 | B115: CALICO ROCK | C115: 3555.05 | D115: 581.33 | E115: 44177.94 | F115: 2366.23 | J115: 0 | N115: 0 | O115: 0 | P115: 34783.94 | Q115: 0 | R115: 0 | S115: 0 | T115: 0 | U115: 0 | V115: 800.05 | W115: 33174.76
A116: 3302 | B116: MELBOURNE | C116: 100.76 | D116: 4548 | E116: 13648.4 | F116: 17806.58 | J116: 0 | N116: 0 | O116: 0 | P116: 43228.8 | Q116: 0 | R116: 0 | S116: 0 | T116: 0 | U116: 1099.19 | V116: 0 | W116: 11266.8
A117: 3306 | B117: IZARD COUNTY CONSOLIDATED | C117: 0 | D117: 0 | E117: 22338.3 | F117: 61.33 | J117: 0 | N117: 0 | O117: 0 | P117: 33640.5 | Q117: 0 | R117: 0 | S117: 0 | T117: 0 | U117: 0 | V117: 1801.53 | W117: 5815.56
A118: 3403 | B118: NEWPORT | C118: 0 | D118: 3189 | E118: 0 | F118: 0 | J118: 0 | N118: 2444.06 | O118: 0 | P118: 0 | Q118: 0 | R118: 0 | S118: 42459.94 | T118: 0 | U118: 25549.68 | V118: 1434.78 | W118: 0
A119: 3405 | B119: JACKSON COUNTY | C119: 0 | D119: 0 | E119: 129570.5 | F119: 2734.56 | J119: 0 | N119: 0 | O119: 0 | P119: 194826.28 | Q119: 0 | R119: 0 | S119: 32921.82 | T119: 0 | U119: 6881.3 | V119: 2673.96 | W119: 39499.07
A120: 3505 | B120: PINE BLUFF | C120: 450.43 | D120: 0 | E120: 17271.88 | F120: 0 | J120: 0.01 | N120: 0 | O120: 0 | P120: 6931.83 | Q120: 0 | R120: 0 | S120: 400 | T120: 0 | U120: 0 | V120: 1888.86 | W120: 34908.84
A121: 3509 | B121: WATSON CHAPEL | C121: 0 | D121: 80207.35 | E121: 0 | F121: 72278.12 | J121: 0 | N121: 165.97 | O121: 0 | P121: 960296.6705 | Q121: 0 | R121: 0 | S121: 28251.96 | T121: 0 | U121: 98637.38 | V121: 0 | W121: 103338.48
A122: 3510 | B122: WHITE HALL | C122: 0 | D122: 0 | E122: 0 | F122: 83169.56 | J122: 0 | N122: 0 | O122: 0 | P122: 216137.75 | Q122: 0 | R122: 0 | S122: 8020.41 | T122: 0 | U122: 0 | V122: 0 | W122: 26691.06
A123: 3544 | B123: FRIENDSHIP ASPIRE ACADEMIES ARKANSAS | C123: 0 | D123: 42690.75 | E123: 0 | F123: 138251.75 | J123: 0 | N123: 104.63 | O123: 0 | P123: 135413.72 | Q123: 0 | R123: 0 | S123: 39910.43 | T123: 3751.88 | U123: 12359.81 | V123: 0 | W123: 6008.3
A124: 3601 | B124: CLARKSVILLE | C124: 0 | D124: 0 | E124: 142423.5 | F124: 0 | J124: 0 | N124: 333.32 | O124: 0 | P124: 0 | Q124: 0 | R124: 0 | S124: 0 | T124: 0 | U124: 0 | V124: 0 | W124: -
A125: 3604 | B125: LAMAR | C125: 0 | D125: 19799.32 | E125: 212330.2 | F125: 48954.63 | J125: 0 | N125: 0 | O125: 0 | P125: 252349.68 | Q125: 34296.32 | R125: 0 | S125: 0 | T125: 11125.34 | U125: 0 | V125: 5750.82 | W125: 86539.39
A126: 3606 | B126: WESTSIDE | C126: 2164.61 | D126: 8179.34 | E126: 53220.95 | F126: 4587.8 | J126: 0 | N126: 0 | O126: 0 | P126: 123930.89 | Q126: 0 | R126: 0 | S126: 2252.49 | T126: 0 | U126: 0 | V126: 133.51 | W126: 49500.47
A127: 3704 | B127: LAFAYETTE COUNTY | C127: 10106.1 | D127: 15483.79 | E127: 36432.92 | F127: 8359.28 | J127: 0 | N127: 0 | O127: 0 | P127: 38337.28 | Q127: 0 | R127: 0 | S127: 0 | T127: 0 | U127: 0 | V127: 1397.51 | W127: 1797.54
A128: 3804 | B128: HOXIE | C128: 0 | D128: 697 | E128: 0.06 | F128: 2927.55 | J128: 0 | N128: 29957.24 | O128: 0 | P128: 36499.19 | Q128: 0 | R128: 0 | S128: 37910.64 | T128: 0 | U128: 9684 | V128: 1193.78 | W128: 13836.68
A129: 3806 | B129: SLOAN-HENDRIX | C129: 3332.12 | D129: 8052 | E129: 0 | F129: 367.79 | J129: 0.02 | N129: 0 | O129: 0 | P129: 117287.9765 | Q129: 0 | R129: 0 | S129: 0 | T129: 0 | U129: 0 | V129: 1865.84 | W129: 210364.51
A130: 3809 | B130: HILLCREST | C130: 0 | D130: 2951.98 | E130: 26475.72 | F130: 7098.96 | J130: 0.01 | N130: 0 | O130: 0 | P130: 56692.71 | Q130: 0 | R130: 0 | S130: 0 | T130: 0 | U130: 0 | V130: 1729.49 | W130: 41251.3
A131: 3810 | B131: LAWRENCE COUNTY | C131: 0 | D131: 690 | E131: 21955.29 | F131: 8633.62 | J131: 0 | N131: 0 | O131: 0 | P131: 38166.65 | Q131: 0 | R131: 0 | S131: 10156.18 | T131: 0 | U131: 0 | V131: 879.32 | W131: 5364.68
A132: 3840 | B132: IMBODEN AREA CHARTER SCHOOL | C132: 2223.09 | D132: 170.82 | E132: 5098.69 | F132: 14323.9 | J132: 0 | N132: 0 | O132: 0.01 | P132: 1468.08 | Q132: 0 | R132: 0 | S132: 0 | T132: 0 | U132: 0 | V132: 2216.09 | W132: 12372.9
A133: 3904 | B133: LEE COUNTY | C133: 0 | D133: 0 | E133: 38238.38 | F133: 6045.4 | J133: 988.22 | N133: 1291.51 | O133: 4841.47 | P133: 1206.57 | Q133: 0 | R133: 0 | S133: 2944.02 | T133: 0 | U133: 1840.46 | V133: 0 | W133: 7761.47
A134: 4003 | B134: STAR CITY | C134: 0 | D134: 17675.1 | E134: 55591.88 | F134: 2547.23 | J134: 0 | N134: 12293.06 | O134: 19659.63 | P134: 228937.71 | Q134: 0 | R134: 0 | S134: 41930.9 | T134: 0 | U134: 0 | V134: 831.87 | W134: 183212.9
A135: 4030 | B135: GENTRY | C135: 36.24 | D135: 28.97 | E135: 21.58 | F135: 0 | J135: 0 | N135: 0 | O135: 59952.82 | P135: 54755.8 | Q135: 0 | R135: 0 | S135: 45.04 | T135: 0 | U135: 2748.48 | V135: 3172.92 | W135: 60812.78
A136: 4101 | B136: ASHDOWN | C136: 1933.2 | D136: 9826.93 | E136: 115126.64 | F136: 15704.86 | J136: 0 | N136: 0 | O136: 0 | P136: 133048.1 | Q136: 0 | R136: 0 | S136: 11807.43 | T136: 0 | U136: 1747.69 | V136: 2977.83 | W136: 63490.73
A137: 4102 | B137: FOREMAN | C137: 653.16 | D137: 209.6 | E137: 17822.97 | F137: 1854.23 | J137: 0 | N137: 0 | O137: 0 | P137: 11913.25 | Q137: 0 | R137: 0 | S137: 0 | T137: 0 | U137: 0 | V137: 0 | W137: 32061.2
A138: 4201 | B138: BOONEVILLE | C138: 0 | D138: 13699.97 | E138: 38868.54 | F138: 8174.51 | J138: 10758.35 | N138: 0 | O138: 0 | P138: 86816.61 | Q138: 0 | R138: 0 | S138: 0 | T138: 0 | U138: 0 | V138: 2960.71 | W138: 20006.99
A139: 4202 | B139: MAGAZINE | C139: 0 | D139: 0 | E139: 25780.32 | F139: 0 | J139: 0 | N139: 0 | O139: 21309.09 | P139: 18001.62 | Q139: 0 | R139: 0 | S139: 0 | T139: 0 | U139: 0 | V139: 0 | W139: 0
A140: 4203 | B140: PARIS | C140: 0 | D140: 0 | E140: 17529.9 | F140: 0 | J140: 0 | N140: 0 | O140: 17470.54 | P140: 64548.32 | Q140: 0 | R140: 0 | S140: 0 | T140: 0 | U140: 0 | V140: 1101.46 | W140: 59111.4
A141: 4204 | B141: SCRANTON | C141: 0 | D141: 6057.88 | E141: 475.07 | F141: 2166.37 | J141: 0 | N141: 0 | O141: 0 | P141: 354.72 | Q141: 0 | R141: 0 | S141: 0 | T141: 0 | U141: 0 | V141: 0 | W141: 85.22
A142: 4301 | B142: LONOKE | C142: 0 | D142: 0 | E142: 259 | F142: 0 | J142: 0 | N142: 0.01 | O142: 0 | P142: 11777.19 | Q142: 0 | R142: 0 | S142: 0 | T142: 0 | U142: 0 | V142: 1600.91 | W142: 27615.03
A143: 4302 | B143: ENGLAND | C143: 57244.98 | D143: 52819.82 | E143: 0 | F143: 2864.6 | J143: 0 | N143: 0 | O143: 0 | P143: 30001.84 | Q143: 0 | R143: 0 | S143: 4406.96 | T143: 0 | U143: 39.66 | V143: 1416.24 | W143: 136984.19
A144: 4303 | B144: CARLISLE | C144: 0 | D144: 150 | E144: 6143.93 | F144: 2156.16 | J144: 0 | N144: 0 | O144: 0 | P144: 23798.59 | Q144: 0 | R144: 0 | S144: 0 | T144: 0 | U144: 0 | V144: 0 | W144: 14693.05
A145: 4304 | B145: CABOT | C145: 26667.11 | D145: 26359.74 | E145: 33358.46 | F145: 107824.71 | J145: 0 | N145: 0 | O145: 0 | P145: 71852.52 | Q145: 0 | R145: 0 | S145: 127900.36 | T145: 15949.41 | U145: 0 | V145: 0 | W145: 174628.15
A146: 4401 | B146: HUNTSVILLE | C146: 0 | D146: 0 | E146: 182526.63 | F146: 35905.92 | J146: 0 | N146: 0 | O146: 0 | P146: 95254.45 | Q146: 9367.85 | R146: 0 | S146: 64721.41 | T146: 22997.17 | U146: 74667.82 | V146: 5392.63 | W146: 122209.77
A147: 4501 | B147: FLIPPIN | C147: 2516.24 | D147: 1455.44 | E147: 34409.66 | F147: 36995.33 | J147: 0 | N147: 565.33 | O147: 0 | P147: 66380.16 | Q147: 0 | R147: 0 | S147: 3873.58 | T147: 0 | U147: 16595.89 | V147: 1922.26 | W147: 213.89
A148: 4502 | B148: YELLVILLE-SUMMIT | C148: 39743.17 | D148: 6794.19 | E148: 71810.07 | F148: 20031.47 | J148: 0 | N148: 0 | O148: 9478.52 | P148: 66154.28 | Q148: 0 | R148: 0 | S148: 0 | T148: 0 | U148: 0 | V148: 2164.51 | W148: 12303.26
A149: 4602 | B149: GENOA CENTRAL | C149: 9163.52 | D149: 2123.98 | E149: 4665.36 | F149: 75.34 | J149: 0 | N149: 39.31 | O149: 0 | P149: 0 | Q149: 0 | R149: 0 | S149: 15874.72 | T149: 0 | U149: 0 | V149: 1176.48 | W149: 40640.42
A150: 4603 | B150: FOUKE | C150: 17930.62 | D150: 8238.05 | E150: 0 | F150: 18312.41 | J150: 0 | N150: 0 | O150: 0 | P150: 41782.81 | Q150: 0 | R150: 0 | S150: 0 | T150: 0 | U150: 0 | V150: 2362.82 | W150: 13095.42
A151: 4605 | B151: TEXARKANA | C151: 0 | D151: 35150.59 | E151: 301380.6 | F151: 119801.18 | J151: 26874.29 | N151: 41858.02 | O151: 12114.14 | P151: 462777.96 | Q151: 0 | R151: 0 | S151: 233304.25 | T151: 0 | U151: 158157.03 | V151: 0 | W151: 224617.96
A152: 4701 | B152: ARMOREL | C152: 0 | D152: 20134.56 | E152: 0 | F152: 0 | J152: 0 | N152: 0 | O152: 0 | P152: 762.8 | Q152: 0 | R152: 0 | S152: 0 | T152: 0 | U152: 0 | V152: 0 | W152: 13507.28
A153: 4702 | B153: BLYTHEVILLE | C153: 129209.42 | D153: 17469.48 | E153: 471117.72 | F153: 16469.65 | J153: 0 | N153: 0 | O153: 0 | P153: 166208.2 | Q153: 0 | R153: 0 | S153: 24145.7 | T153: 0 | U153: 23896.03 | V153: 2043.88 | W153: 275003.16
A154: 4706 | B154: RIVERCREST | C154: 0 | D154: 3294 | E154: 87753.64 | F154: 0 | J154: 0 | N154: 0 | O154: 0 | P154: 21237.61 | Q154: 0 | R154: 0 | S154: 0 | T154: 0 | U154: 0 | V154: 2484.62 | W154: 370548.09
A155: 4708 | B155: GOSNELL | C155: 0 | D155: 0 | E155: 213557.75 | F155: 3273.84 | J155: 0 | N155: 0 | O155: 0 | P155: 32393.21 | Q155: 0 | R155: 0 | S155: 3186.86 | T155: 0 | U155: 0 | V155: 2594.32 | W155: 65037.64
A156: 4712 | B156: MANILA | C156: 0 | D156: 0 | E156: 19697.67 | F156: 10563.7 | J156: 0 | N156: 0 | O156: 0 | P156: 31932.46 | Q156: 0 | R156: 0 | S156: 0 | T156: 0 | U156: 0 | V156: 30.9 | W156: 4606.84
A157: 4713 | B157: OSCEOLA | C157: 32152.43 | D157: 27081.51 | E157: 234886.16 | F157: 22054.13 | J157: 0 | N157: 41.81 | O157: 0 | P157: 212896.01 | Q157: 0 | R157: 0 | S157: 62560.98 | T157: 0 | U157: 52712.57 | V157: 2202.78 | W157: 14075.62
A158: 4801 | B158: BRINKLEY | C158: 0 | D158: 22278.55 | E158: 182326.24 | F158: 23799.15 | J158: 0 | N158: 3844.51 | O158: 19283.98 | P158: 134455.07 | Q158: 0 | R158: 0 | S158: 25744.77 | T158: 0 | U158: 30869.82 | V158: 976.31 | W158: 0
A159: 4802 | B159: CLARENDON | C159: 502.21 | D159: 915.75 | E159: 83784.95 | F159: 9997.51 | J159: 0 | N159: 0.02 | O159: 0.01 | P159: 49378.62 | Q159: 0 | R159: 0 | S159: 1978.22 | T159: 0 | U159: 0 | V159: 429.23 | W159: 0
A160: 4901 | B160: CADDO HILLS | C160: 4912.94 | D160: 11556.23 | E160: 54177.95 | F160: 8461.89 | J160: 0 | N160: 0 | O160: 0 | P160: 35150.02 | Q160: 0 | R160: 0 | S160: 0 | T160: 0 | U160: 667.5 | V160: 1283.12 | W160: 3952.04
A161: 4902 | B161: MOUNT IDA | C161: 0 | D161: 0 | E161: 5598.11 | F161: 0 | J161: 0 | N161: 0 | O161: 0 | P161: 2791 | Q161: 0 | R161: 0 | S161: 0 | T161: 0 | U161: 0 | V161: 0 | W161: 4293.88
A162: 5006 | B162: PRESCOTT | C162: 0 | D162: 0.8 | E162: 0 | F162: 816.06 | J162: 0 | N162: 0 | O162: 0 | P162: 796.58 | Q162: 0 | R162: 0 | S162: 17241.85 | T162: 0 | U162: 524.55 | V162: 2145.68 | W162: 49003.16
A163: 5008 | B163: NEVADA | C163: 3339.49 | D163: 13467 | E163: 70893.36 | F163: 4527.08 | J163: 11139.87 | N163: 0 | O163: 0 | P163: 52734.02 | Q163: 0 | R163: 0 | S163: 0 | T163: 0 | U163: 0 | V163: 0 | W163: 28651.86
A164: 5102 | B164: JASPER | C164: 0 | D164: 2809 | E164: 16634.94 | F164: 12477.7 | J164: 0 | N164: 75.04 | O164: 0 | P164: 52436.13 | Q164: 8944.1345 | R164: 0 | S164: 0 | T164: 0 | U164: 0 | V164: 1850.01 | W164: 171715.88
A165: 5106 | B165: DEER/MT. JUDEA | C165: 0 | D165: 0 | E165: 102078.32 | F165: 5400.49 | J165: 810.68 | N165: 0 | O165: 0 | P165: 101980.65 | Q165: 0 | R165: 0 | S165: 15749.14 | T165: 0 | U165: 13661.3 | V165: 0 | W165: 57479.36
A166: 5201 | B166: BEARDEN | C166: 9519.98 | D166: 182.29 | E166: 41064.26 | F166: 36065.99 | J166: 3713.29 | N166: 22.67 | O166: 30237.95 | P166: 33912.22 | Q166: 0 | R166: 0 | S166: 32334.42 | T166: 0 | U166: 162.35 | V166: 0 | W166: 13327.46
A167: 5204 | B167: CAMDEN-FAIRVIEW | C167: 25078.01 | D167: 68853.66 | E167: 94164.76 | F167: 5406.45 | J167: 30168.32 | N167: 18912.5 | O167: 12779.25 | P167: 119651.15 | Q167: 0 | R167: 0 | S167: 13766.85 | T167: 0 | U167: 78113.92 | V167: 4827.01 | W167: 3246.35
A168: 5205 | B168: HARMONY GROVE | C168: 103.05 | D168: 0 | E168: 2683.04 | F168: 0 | J168: 12996.03 | N168: 0 | O168: 3188.24 | P168: 6617.65 | Q168: 0 | R168: 0 | S168: 3007.21 | T168: 0 | U168: 6374.36 | V168: 92.27 | W168: 22259.93
A169: 5301 | B169: EAST END | C169: 0 | D169: 34.72 | E169: 4612.05 | F169: 2448.36 | J169: 0 | N169: 0 | O169: 0 | P169: 5262.93 | Q169: 0 | R169: 0 | S169: 996.48 | T169: 0 | U169: 0 | V169: 64.22 | W169: 7051.33
A170: 5303 | B170: PERRYVILLE | C170: 0 | D170: 1098 | E170: 19062.37 | F170: 0 | J170: 0 | N170: 0 | O170: 0 | P170: 18381.74 | Q170: 0 | R170: 0 | S170: 4002.06 | T170: 0 | U170: 27031.72 | V170: 1258.88 | W170: 30807.99
A171: 5401 | B171: BARTON | C171: 1145 | D171: 3013.96 | E171: 69207.95 | F171: 2004.46 | J171: 0 | N171: 0 | O171: 0 | P171: 32898.06 | Q171: 0 | R171: 0 | S171: 3518.31 | T171: 0 | U171: 0 | V171: 1514.73 | W171: 2856.78
A172: 5403 | B172: HELENA-W HELENA | C172: 147585.27 | D172: 7411.55 | E172: 1475565.29 | F172: 134222.65 | J172: 0 | N172: 9310.12 | O172: 57191.66 | P172: 191422.44 | Q172: 0 | R172: 0 | S172: 0 | T172: 0 | U172: 63039.79 | V172: 1507.71 | W172: 80318.77
A173: 5404 | B173: MARVELL-ELAINE | C173: 7062 | D173: 0 | E173: 365923.03 | F173: 6757.05 | J173: 0 | N173: 1.73 | O173: 0 | P173: 144345.535 | Q173: 0 | R173: 0 | S173: 62375.28 | T173: 0 | U173: 0 | V173: 417.02 | W173: 194282.86
A174: 5440 | B174: KIPP DELTA | C174: 0 | D174: 18615.64 | E174: 832332.21 | F174: 30768 | J174: 943.99 | N174: 0 | O174: 0 | P174: 725814.984 | Q174: 0 | R174: 0 | S174: 175404.14 | T174: 0 | U174: 174413.14 | V174: 1509.07 | W174: 113530.05
A175: 5502 | B175: CENTERPOINT | C175: 0 | D175: 0 | E175: 44077.95 | F175: 217.4 | J175: 0.01 | N175: 0 | O175: 2658.58 | P175: 52868.5 | Q175: 10582.92 | R175: 0 | S175: 1720.43 | T175: 3487.16 | U175: 175.09 | V175: 2358.3 | W175: 28397.32
A176: 5503 | B176: KIRBY | C176: 1754.2 | D176: 12261.47 | E176: 0 | F176: 6637.34 | J176: 4167.64 | N176: 6287.49 | O176: 8814.4 | P176: 8392.85 | Q176: 0 | R176: 0 | S176: 623.61 | T176: 0 | U176: 0 | V176: 0 | W176: 5917.46
A177: 5504 | B177: SOUTH PIKE COUNTY | C177: 6368.3 | D177: 1622.03 | E177: 80371.45 | F177: 2121.23 | J177: 6050.98 | N177: 25.29 | O177: 17041.46 | P177: 35613.54 | Q177: 0 | R177: 0 | S177: 0 | T177: 0 | U177: 0 | V177: 692.46 | W177: 46281.32
A178: 5602 | B178: HARRISBURG | C178: 0 | D178: 533.3 | E178: 38068.34 | F178: 0 | J178: 0 | N178: 0 | O178: 0 | P178: 16133.81 | Q178: 0 | R178: 0 | S178: 0 | T178: 0 | U178: 0 | V178: 2590.84 | W178: 1098.1
A179: 5604 | B179: MARKED TREE | C179: 0 | D179: 0 | E179: 4152.37 | F179: 0 | J179: 988.55 | N179: 2386.25 | O179: 2784.07 | P179: 70149.35 | Q179: 0 | R179: 0 | S179: 1165.52 | T179: 0 | U179: 194.35 | V179: 1105.95 | W179: 6284.91
A180: 5605 | B180: TRUMANN | C180: 6877.07 | D180: 53591.4 | E180: 40122.47 | F180: 6139.49 | J180: 0 | N180: 0.01 | O180: 0 | P180: 47573.5 | Q180: 0 | R180: 0 | S180: 6674.02 | T180: 0 | U180: 0 | V180: 3342.06 | W180: 39866.2
A181: 5608 | B181: EAST POINSETT COUNTY | C181: 0 | D181: 4201.62 | E181: 443521.87 | F181: 1828.41 | J181: 6139.48 | N181: 9981.89 | O181: 10574.42 | P181: 33352.92 | Q181: 0 | R181: 0 | S181: 0 | T181: 0 | U181: 0 | V181: 1312.61 | W181: 17308.51
A182: 5703 | B182: MENA | C182: 6027.13 | D182: 20902.66 | E182: 79822.08 | F182: 4562.91 | J182: 0 | N182: 0 | O182: 0 | P182: 275652.67 | Q182: 0 | R182: 0 | S182: 0 | T182: 0 | U182: 0 | V182: 3933.62 | W182: 7117.33
A183: 5706 | B183: OUACHITA RIVER | C183: 1518.84 | D183: 6944.15 | E183: 16130.78 | F183: 113.32 | J183: 0 | N183: 1.94 | O183: 0 | P183: 21515.59 | Q183: 0 | R183: 0 | S183: 0 | T183: 0 | U183: 0 | V183: 1753.57 | W183: 5891.53
A184: 5707 | B184: COSSATOT RIVER | C184: 0 | D184: 2798.54 | E184: 39090.12 | F184: 16465.17 | J184: 0 | N184: 0 | O184: 0 | P184: 120986.26 | Q184: 8357.76 | R184: 0 | S184: 0 | T184: 1461.78 | U184: 0 | V184: 2044.55 | W184: 12738.29
A185: 5801 | B185: ATKINS | C185: 0 | D185: 1223.42 | E185: 1403.69 | F185: 0 | J185: 0 | N185: 0 | O185: 0 | P185: 48966.84 | Q185: 0 | R185: 0 | S185: 1847.13 | T185: 0 | U185: 167.42 | V185: 2160.46 | W185: 210.28
A186: 5802 | B186: DOVER | C186: 1579.02 | D186: 16806.2 | E186: 21027.9 | F186: 12329.91 | J186: 0 | N186: 0 | O186: 0 | P186: 52930.93 | Q186: 0 | R186: 0 | S186: 60545.16 | T186: 0 | U186: 10394.47 | V186: 1492.4 | W186: 17991.56
A187: 5803 | B187: HECTOR | C187: 18769 | D187: 732 | E187: 49401.93 | F187: 0 | J187: 0 | N187: 0 | O187: 0 | P187: 28243.38 | Q187: 0 | R187: 0 | S187: 47666.31 | T187: 0 | U187: 4902.26 | V187: 0 | W187: 19888.5
A188: 5804 | B188: POTTSVILLE | C188: 732.86 | D188: 8035.53 | E188: 23839.51 | F188: 20856.09 | J188: 0 | N188: 0 | O188: 0 | P188: 30252.1 | Q188: 0 | R188: 0 | S188: 22575.37 | T188: 0 | U188: 5031.23 | V188: 0 | W188: 7504.4
A189: 5805 | B189: RUSSELLVILLE | C189: 25162.54 | D189: 18628.57 | E189: 25000 | F189: 10000 | J189: 28214.95 | N189: 19211.54 | O189: 144682.19 | P189: 305685.43 | Q189: 5694.37 | R189: 0 | S189: 144427.35 | T189: 18452.86 | U189: 51215.84 | V189: 6769 | W189: 247023.72
A190: 5901 | B190: DES ARC | C190: 0 | D190: 4269.72 | E190: 61882.01 | F190: 0 | J190: 0 | N190: 0 | O190: 0 | P190: 26962.02 | Q190: 0 | R190: 0 | S190: 890.83 | T190: 0 | U190: 0 | V190: 0 | W190: 19801.6
A191: 5903 | B191: HAZEN | C191: 0 | D191: 7166 | E191: 65223.61 | F191: 2266.55 | J191: 0 | N191: 0 | O191: 0 | P191: 33782.89 | Q191: 0 | R191: 0 | S191: 48628.74 | T191: 0 | U191: 17878.2 | V191: 1208.2 | W191: 42177.08
A192: 6001 | B192: LITTLE ROCK | C192: 0 | D192: 0 | E192: 69266.3 | F192: 0 | J192: 42200.31 | N192: 0 | O192: 0 | P192: 2987510.16 | Q192: 0 | R192: 0 | S192: 694199.24 | T192: 0 | U192: 254144.86 | V192: 0 | W192: 90033.09
A193: 6002 | B193: NORTH LITTLE ROCK | C193: 0 | D193: 0 | E193: 0 | F193: 0 | J193: 2003.04 | N193: 2679.82 | O193: 13190.45 | P193: 971821.981 | Q193: 0 | R193: 0 | S193: 222688.05 | T193: 5482.43 | U193: 122696.67 | V193: 0 | W193: 10636.46
A194: 6003 | B194: PULASKI COUNTY | C194: 0 | D194: 292866.81 | E194: 139960.74 | F194: 287741.37 | J194: 101832.94 | N194: 33769.43 | O194: 462970.34 | P194: 1460800.37 | Q194: 13057.9325 | R194: 0 | S194: 401966.42 | T194: 19883.84 | U194: 169108.14 | V194: 0 | W194: 304198.35
A195: 6004 | B195: JACKSONVILLE NORTH PULASKI | C195: 59478.46 | D195: 0 | E195: 0 | F195: 0 | J195: 0 | N195: 79.12 | O195: 0 | P195: 162556.85 | Q195: 0 | R195: 0 | S195: 140040.68 | T195: 2639.01 | U195: 25420.14 | V195: 0 | W195: 35332.69
A196: 6040 | B196: ACADEMICS PLUS | C196: 0 | D196: 0 | E196: 123.42 | F196: 9769.24 | J196: 16431.93 | N196: 25395.97 | O196: 77891.24 | P196: 19859.87 | Q196: 0 | R196: 0 | S196: 88.63 | T196: 0 | U196: 2417.99 | V196: 0 | W196: 300
A197: 6041 | B197: LISA ACADEMY | C197: 0 | D197: 0 | E197: 0 | F197: 0 | J197: 29864.32 | N197: 37342.97 | O197: 100622.91 | P197: 0 | Q197: 0 | R197: 0 | S197: 0 | T197: 83311.71 | U197: 0 | V197: 0 | W197: 0
A198: 6043 | B198: ARKANSAS VIRTUAL ACADEMY | C198: 0 | D198: 146752.34 | E198: 0 | F198: 186984.75 | J198: 0 | N198: 0 | O198: 0 | P198: 750200.29 | Q198: 0 | R198: 0 | S198: 284415.24 | T198: 600 | U198: 87430.5 | V198: 0 | W198: 61734.8
A199: 6047 | B199: ESTEM | C199: 0 | D199: 34739.52 | E199: 135930.23 | F199: 87256.66 | J199: 0 | N199: 0 | O199: 0 | P199: 57766.78 | Q199: 0 | R199: 0 | S199: 0 | T199: 2902.34 | U199: 4175.19 | V199: 0 | W199: 0
A200: 6050 | B200: ARKANSAS LIGHTHOUSE ACADEMIES | C200: 0 | D200: 6194.11 | E200: 27488.5 | F200: 5875.5 | J200: 0 | N200: 9876.62 | O200: 9364.33 | P200: 61875.81 | Q200: 0 | R200: 0 | S200: 0 | T200: 0 | U200: 0 | V200: 0 | W200: 214220.43
... 65 more rows

Sheet Allocation (hidden)
C1: 3 | D1: 4 | E1: 5 | F1: 6 | G1: 7 | H1: 8 | I1: 9 | J1: 10 | K1: 11 | L1: 12 | M1: 13 | N1: 14 | O1: 15 | P1: 16 | Q1: 17 | R1: 18 | S1: 19 | T1: 20 | U1: 21 | V1: 22 | W1: 23
A2: District LEA | B2: District Name | C2: ALE: 2275 | D2: ELL: 2276 | E2: ESA: 2281 | F2: PD: 2223 | G2: ABC | H2: Medicaid: 6750 | I2: ARMAC: 6752 | J2: EIDT: 2262 | K2: Grant | L2: GT Required Expenditure | M2: Operating | N2: Fed Early Childhood SPED: 6710 | O2: State Early Childhood SPED: 2260 | P2: Title I - A: 6501 | Q2: Title I - C: 6502 | R2: Title I - D: 6510 | S2: Title II: 6756 | T2: Title III-ESOL: 6761 | U2: Title IV: 6786 | V2: Title V: 6784 | W2: Title VI B (IDEA Part B - SPED): 6702
A3: 9999 | B3: SAMPLE DISTRICT | C3: 39351 | D3: 80886 | E3: 485276 | F3: 21190 | J3: 6266.78 | L3: 32933.11 | N3: 5729.96 | O3: 17644 | P3: 139236.78 | Q3: 0 | R3: 0 | S3: 27611.89 | T3: 23604.54 | U3: 10784.57 | V3: 0 | W3: 164607.6
A4: 0101 | B4: DEWITT | C4: 43991 | D4: 16470 | E4: 363150 | F4: 41513 | J4: 28200.53 | L4: 64518.73 | N4: 12250.74 | O4: 79398.04 | P4: 376267.87 | Q4: 0 | R4: 0 | S4: 61007.77 | T4: 0 | U4: 28868.3 | V4: 38543.65 | W4: 315337.34 | Z4: Final
A5: 0104 | B5: STUTTGART | C5: 66736 | D5: 39162 | E5: 496036 | F5: 57166 | J5: 25067.14 | L5: 88847.59 | N5: 21464.85 | O5: 70576.03 | P5: 538490.65 | Q5: 0 | R5: 0 | S5: 85539.09 | T5: 220.98 | U5: 38207.76 | V5: 54657.39 | W5: 457316.17 | Z5: Preliminary
A6: 0201 | B6: CROSSETT | C6: 206808 | D6: 12444 | E6: 496036 | F6: 56486 | J6: 42524.61 | L6: 87790.93 | N6: 32377.23 | O6: 119727.2 | P6: 682743.53 | Q6: 0 | R6: 0 | S6: 100655.42 | T6: 0 | U6: 52399.39 | V6: 53105.91 | W6: 458102.08
A7: 0203 | B7: HAMBURG | C7: 118156 | D7: 52704 | E7: 551450 | F7: 57720 | J7: 42972.24 | L7: 89708.42 | N7: 25342.53 | O7: 120987.49 | P7: 462652.2 | Q7: 104557.53 | R7: 0 | S7: 72079.94 | T7: 15857.29 | U7: 34203.01 | V7: 52894.94 | W7: 470886.85
A8: 0302 | B8: COTTER | C8: 34630 | D8: 1098 | E8: 251784 | F8: 25185 | J8: 5819.15 | L8: 39143.11 | N8: 8842.6 | O8: 16383.72 | P8: 252818.08 | Q8: 0 | R8: 0 | S8: 31301.45 | T8: 0 | U8: 21038.38 | V8: 0 | W8: 189684.31
A9: 0303 | B9: MOUNTAIN HOME | C9: 378879 | D9: 12810 | E9: 937196 | F9: 142402 | J9: 56848.7 | L9: 221321.38 | N9: 40931.55 | O9: 160056.37 | P9: 1206042.34 | Q9: 0 | R9: 0 | S9: 173504.09 | T9: 0 | U9: 98914.22 | V9: 0 | W9: 981306.69
A10: 0304 | B10: NORFORK | C10: 0 | D10: 0 | E10: 201040 | F10: 17163 | J10: 4923.9 | L10: 26674.15 | N10: 12854.69 | O10: 13863.15 | P10: 192915.02 | Q10: 0 | R10: 0 | S10: 26962.46 | T10: 0 | U10: 15880.22 | V10: 0 | W10: 139192.47
A11: 0401 | B11: BENTONVILLE | C11: 903045 | D11: 375882 | E11: 1873316 | F11: 714852 | J11: 131602.5 | L11: 1111023.56 | N11: 103973.99 | O11: 370524.2 | P11: 1523225.27 | Q11: 0 | R11: 17824.66 | S11: 349837.3 | T11: 101600.41 | U11: 115489.8 | V11: 0 | W11: 3930214.32
A12: 0402 | B12: DECATUR | C12: 39351 | D12: 80886 | E12: 485276 | F12: 21190 | J12: 6266.78 | L12: 32933.11 | N12: 5729.96 | O12: 17644 | P12: 139236.78 | Q12: 0 | R12: 0 | S12: 27611.89 | T12: 23604.54 | U12: 10784.57 | V12: 0 | W12: 164607.6
A13: 0403 | B13: GENTRY | C13: 146892 | D13: 75396 | E13: 543215 | F13: 62659 | J13: 11190.68 | L13: 97384.23 | N13: 10636.48 | O13: 31507.15 | P13: 232007.22 | Q13: 0 | R13: 0 | S13: 48682.32 | T13: 22114.86 | U13: 18278.43 | V13: 0 | W13: 426916.13
A14: 0404 | B14: GRAVETTE | C14: 127985 | D14: 20130 | E14: 469339 | F14: 76164 | J14: 16114.59 | L14: 118373.51 | N14: 12485.25 | O14: 45370.31 | P14: 276476.15 | Q14: 0 | R14: 0 | S14: 59477.9 | T14: 0 | U14: 24682.06 | V14: 0 | W14: 448279.6
A15: 0405 | B15: ROGERS | C15: 790477 | D15: 1566480 | E15: 4362104 | F15: 580624 | J15: 113697.4 | L15: 902405.43 | N15: 106753.59 | O15: 320112.74 | P15: 2949080.92 | Q15: 0 | R15: 0 | S15: 490048.15 | T15: 478676.06 | U15: 244776.98 | V15: 0 | W15: 3505598.28
A16: 0406 | B16: SILOAM SPRINGS | C16: 395411 | D16: 361608 | E16: 1407833 | F16: 168515 | J16: 42076.99 | L16: 261905.24 | N16: 25910.13 | O16: 118466.92 | P16: 963609.07 | Q16: 0 | R16: 0 | S16: 144025.51 | T16: 111029.45 | U16: 85944.27 | V16: 0 | W16: 961225.71
A17: 0407 | B17: PEA RIDGE | C17: 26813 | D17: 42090 | E17: 454703 | F17: 94382 | J17: 12981.19 | L17: 146687.73 | N17: 17014.07 | O17: 36548.3 | P17: 224154.83 | Q17: 0 | R17: 0 | S17: 51510.11 | T17: 0 | U17: 19651.9 | V17: 0 | W17: 514121.4
A18: 0440 | B18: ARKANSAS ARTS ACADEMY | C18: 0 | D18: 27084 | E18: 220580 | F18: 37078 | J18: 2238.13 | L18: 57626.82 | N18: 6280.5 | O18: 6301.43 | P18: 174668.24 | Q18: 0 | R18: 0 | S18: 23391.69 | T18: 0 | U18: 14888.27 | V18: 0 | W18: 206342.53
A19: 0442 | B19: FOUNDERS CLASSICAL ACADEMY | C19: 0 | D19: 88206 | E19: 91460 | F19: 66113 | J19: 2238.13 | L19: 0 | N19: 9703.84 | O19: 6301.43 | P19: 48229.9 | Q19: 0 | R19: 0 | S19: 32843.57 | T19: 25899.5 | U19: 10000 | V19: 0 | W19: 352922.23
A20: 0444 | B20: ARKANSAS CONNECTIONS ACADEMY | C20: 0 | D20: 37698 | E20: 0 | F20: 143418 | J20: 0 | L20: 0 | N20: 0 | O20: 0 | P20: 1394716.48 | Q20: 0 | R20: 0 | S20: 214563.52 | T20: 0 | U20: 66995.06 | V20: 0 | W20: 892135.62
A21: 0445 | B21: HOPE ACADEMY | C21: 50860 | D21: 0 | E21: 0 | F21: 1067 | J21: 0 | L21: 0 | N21: 0 | O21: 0 | P21: 350.62 | Q21: 0 | R21: 0 | S21: 677.29 | T21: 0 | U21: 10000 | V21: 0 | W21: 10846.82
A22: 0446 | B22: SCHOOL FOR ADVANCED STUDIES | C22: 0 | D22: 0 | E22: 0 | F22: 3113 | J22: 0 | L22: 0 | N22: 0 | O22: 0 | P22: 0 | Q22: 0 | R22: 0 | S22: 878.5 | T22: 0 | U22: 0 | V22: 0 | W22: 14957.7
A23: 0448 | B23: GARFIELD SCHOLARS ACADEMY | C23: 0 | D23: 0 | E23: 15602 | F23: 3638 | J23: 0 | L23: 5653.4 | N23: 0 | O23: 0 | P23: 0 | Q23: 0 | R23: 0 | S23: 1460.27 | T23: 0 | U23: 0 | V23: 0 | W23: 14514.11
A24: 0501 | B24: ALPENA | C24: 5596 | D24: 2928 | E24: 205348 | F24: 15180 | J24: 4028.64 | L24: 23592.76 | N24: 5811.73 | O24: 11342.57 | P24: 211723.52 | Q24: 0 | R24: 0 | S24: 22960.23 | T24: 0 | U24: 17546.03 | V24: 0 | W24: 130536.82
A25: 0502 | B25: BERGMAN | C25: 98530 | D25: 1830 | E25: 338402 | F25: 38375 | J25: 7609.66 | L25: 59642.23 | N25: 6030.07 | O25: 21424.86 | P25: 207986.91 | Q25: 0 | R25: 0 | S25: 36170.17 | T25: 0 | U25: 15869.19 | V25: 0 | W25: 236979.26
A26: 0503 | B26: HARRISON | C26: 125347 | D26: 15372 | E26: 802158 | F26: 102151 | J26: 46553.26 | L26: 158762.7 | N26: 41756.34 | O26: 131069.78 | P26: 691664.65 | Q26: 0 | R26: 0 | S26: 122241.54 | T26: 0 | U26: 55479.34 | V26: 0 | W26: 692216.55
A27: 0504 | B27: OMAHA | C27: 101133 | D27: 732 | E27: 292672 | F27: 14496 | J27: 2685.76 | L27: 22530.27 | N27: 9244.16 | O27: 7561.71 | P27: 142137.5 | Q27: 0 | R27: 0 | S27: 20828.42 | T27: 0 | U27: 11867.45 | V27: 0 | W27: 117790.44
A28: 0505 | B28: VALLEY SPRINGS | C28: 30255 | D28: 2562 | E28: 209282 | F28: 30305 | J28: 5819.15 | L28: 47099.84 | N28: 7500.91 | O28: 16383.72 | P28: 192920.87 | Q28: 0 | R28: 0 | S28: 34172.44 | T28: 0 | U28: 14685.32 | V28: 0 | W28: 211721.86
A29: 0506 | B29: LEAD HILL | C29: 20693 | D29: 366 | E29: 286216 | F29: 12869 | J29: 447.62 | L29: 20000.22 | N29: 3632.74 | O29: 1260.28 | P29: 168171.74 | Q29: 0 | R29: 0 | S29: 23301 | T29: 0 | U29: 13491.47 | V29: 0 | W29: 120880.06
A30: 0601 | B30: HERMITAGE | C30: 24776 | D30: 23790 | E30: 318496 | F30: 14661 | J30: 10295.43 | L30: 22786.71 | N30: 7465.81 | O30: 28986.58 | P30: 188783.89 | Q30: 358950.15 | R30: 0 | S30: 25585.68 | T30: 0 | U30: 14469.39 | V30: 0 | W30: 110811.44
A31: 0602 | B31: WARREN | C31: 82922 | D31: 99552 | E31: 1095368 | F31: 53386 | J31: 49686.66 | L31: 82972.72 | N31: 34548.6 | O31: 139891.78 | P31: 553341.02 | Q31: 151106.09 | R31: 0 | S31: 69520.74 | T31: 25112.76 | U31: 46244.58 | V31: 49921.02 | W31: 396197.66
A32: 0701 | B32: HAMPTON | C32: 6272 | D32: 1098 | E32: 390588 | F32: 19011 | J32: 8952.55 | L32: 29546.9 | N32: 13663.49 | O32: 25205.72 | P32: 140474.19 | Q32: 0 | R32: 0 | S32: 21110.54 | T32: 38304.08 | U32: 11295.29 | V32: 0 | W32: 166457.15
A33: 0801 | B33: BERRYVILLE | C33: 164196 | D33: 134322 | E33: 1367596 | F33: 66920 | J33: 15219.33 | L33: 104006.87 | N33: 23891.47 | O33: 42849.73 | P33: 568101.06 | Q33: 119741.45 | R33: 0 | S33: 82983.2 | T33: 51225.84 | U33: 43612.87 | V33: 0 | W33: 446059.33
A34: 0802 | B34: EUREKA SPRINGS | C34: 94905 | D34: 17568 | E34: 208206 | F34: 23160 | J34: 7162.04 | L34: 35994.69 | N34: 9237.74 | O34: 20164.58 | P34: 323755.09 | Q34: 0 | R34: 0 | S34: 39260.22 | T34: 0 | U34: 24473.23 | V34: 21749.85 | W34: 187438.32
A35: 0803 | B35: GREEN FOREST | C35: 22292 | D35: 185196 | E35: 1148092 | F35: 51763 | J35: 16114.59 | L35: 80449.67 | N35: 16410.84 | O35: 45370.31 | P35: 398326.09 | Q35: 117795.36 | R35: 0 | S35: 70562.52 | T35: 0 | U35: 30444.49 | V35: 48735.66 | W35: 355739.84
A36: 0901 | B36: DERMOTT | C36: 0 | D36: 732 | E36: 443575 | F36: 10503 | J36: 22381.37 | L36: 16323.18 | N36: 6126 | O36: 63014.31 | P36: 406923.35 | Q36: 0 | R36: 0 | S36: 37693.61 | T36: 0 | U36: 31152.22 | V36: 11457.18 | W36: 124690.43
A37: 0903 | B37: LAKESIDE | C37: 30255 | D37: 19032 | E37: 737060 | F37: 30662 | J37: 21486.12 | L37: 47654.69 | N37: 38560.69 | O37: 60493.74 | P37: 911413.93 | Q37: 0 | R37: 0 | S37: 81829 | T37: 0 | U37: 69890.47 | V37: 30045.86 | W37: 329915.83
A38: 1002 | B38: ARKADELPHIA | C38: 194540 | D38: 20130 | E38: 612782 | F38: 67032 | J38: 36705.46 | L38: 104180.55 | N38: 31841.93 | O38: 103343.48 | P38: 548027.71 | Q38: 0 | R38: 0 | S38: 95784.48 | T38: 0 | U38: 42148.21 | V38: 62368.95 | W38: 535564.66
A39: 1003 | B39: GURDON | C39: 66937 | D39: 20496 | E39: 443312 | F39: 20487 | J39: 13876.45 | L39: 31840.9 | N39: 8236.51 | O39: 39068.87 | P39: 238014.37 | Q39: 0 | R39: 0 | S39: 34452.94 | T39: 0 | U39: 18269.02 | V39: 20921.67 | W39: 187765.2
A40: 1101 | B40: CORNING | C40: 56707 | D40: 732 | E40: 614396 | F40: 29703 | J40: 16562.22 | L40: 46163.82 | N40: 29327.11 | O40: 46630.59 | P40: 375637.16 | Q40: 0 | R40: 0 | S40: 52998.05 | T40: 0 | U40: 28936.31 | V40: 27865.86 | W40: 283784.75
A41: 1104 | B41: PIGGOTT | C41: 16058 | D41: 3294 | E41: 263082 | F41: 28652 | J41: 21038.49 | L41: 44531.33 | N41: 13066.13 | O41: 59233.46 | P41: 362730.57 | Q41: 0 | R41: 0 | S41: 51376.29 | T41: 0 | U41: 18988.67 | V41: 27838.41 | W41: 214064.62
A42: 1106 | B42: RECTOR | C42: 22798 | D42: 2196 | E42: 449768 | F42: 21117 | J42: 11638.31 | L42: 32820.04 | N42: 7138.2 | O42: 32767.44 | P42: 206739.04 | Q42: 0 | R42: 0 | S42: 31972.31 | T42: 0 | U42: 14618.74 | V42: 0 | W42: 185062.93
A43: 1201 | B43: CONCORD | C43: 0 | D43: 1830 | E43: 159396 | F43: 14004 | J43: 13876.45 | L43: 21764.43 | N43: 6731.99 | O43: 39068.87 | P43: 198463.05 | Q43: 0 | R43: 0 | S43: 25945.36 | T43: 0 | U43: 15041.93 | V43: 0 | W43: 117429.62
A44: 1202 | B44: HEBER SPRINGS | C44: 62443 | D44: 8052 | E44: 381442 | F44: 58400 | J44: 26410.02 | L44: 90764.5 | N44: 17613.81 | O44: 74356.89 | P44: 450600.46 | Q44: 0 | R44: 0 | S44: 60449.57 | T44: 0 | U44: 34541.31 | V44: 0 | W44: 405676.29
A45: 1203 | B45: QUITMAN | C45: 0 | D45: 1464 | E45: 251128 | F45: 32511 | J45: 7162.04 | L45: 50529.18 | N45: 8171.14 | O45: 20164.58 | P45: 170017.65 | Q45: 0 | R45: 0 | S45: 25676.36 | T45: 0 | U45: 14000.07 | V45: 0 | W45: 201554.91
A46: 1204 | B46: WEST SIDE | C46: 5925 | D46: 732 | E46: 365840 | F46: 17527 | J46: 7609.66 | L46: 27240.66 | N46: 2731.58 | O46: 21424.86 | P46: 264488.81 | Q46: 0 | R46: 0 | S46: 27819.46 | T46: 0 | U46: 19976.27 | V46: 0 | W46: 126187.35
A47: 1304 | B47: WOODLAWN | C47: 6359 | D47: 4758 | E47: 154191 | F47: 21603 | J47: 4028.64 | L47: 33575.97 | N47: 5247.23 | O47: 11342.57 | P47: 77235.32 | Q47: 0 | R47: 0 | S47: 14408.31 | T47: 0 | U47: 10000 | V47: 0 | W47: 131330.21
A48: 1305 | B48: CLEVELAND COUNTY | C48: 2686 | D48: 9150 | E48: 186686 | F48: 25799 | J48: 12981.19 | L48: 40096.61 | N48: 17291.11 | O48: 36548.3 | P48: 225902.44 | Q48: 0 | R48: 0 | S48: 34183.7 | T48: 0 | U48: 17303.34 | V48: 24330.09 | W48: 217964.99
A49: 1402 | B49: MAGNOLIA | C49: 98725 | D49: 36600 | E49: 2006740 | F49: 93810 | J49: 35810.2 | L49: 145800.08 | N49: 62937.58 | O49: 100822.91 | P49: 1277867.02 | Q49: 0 | R49: 0 | S49: 178520.95 | T49: 0 | U49: 95914.48 | V49: 86596.48 | W49: 789688.74
A50: 1408 | B50: EMERSON-TAYLOR-BRADLEY | C50: 0 | D50: 5490 | E50: 294824 | F50: 45990 | J50: 7609.66 | L50: 71477.08 | N50: 24095.14 | O50: 21424.86 | P50: 311793.34 | Q50: 0 | R50: 0 | S50: 46665.44 | T50: 0 | U50: 21093.95 | V50: 41211.84 | W50: 305083.16
A51: 1503 | B51: NEMO VISTA | C51: 6658 | D51: 0 | E51: 126430 | F51: 17257 | J51: 8504.92 | L51: 26820.44 | N51: 3114.87 | O51: 23945.44 | P51: 114910.91 | Q51: 0 | R51: 0 | S51: 19211.24 | T51: 0 | U51: 10000 | V51: 0 | W51: 118860.97
A52: 1505 | B52: WONDERVIEW | C52: 0 | D52: 1830 | E52: 136114 | F52: 16239 | J52: 6714.41 | L52: 25239.24 | N52: 4180.81 | O52: 18904.29 | P52: 204547.49 | Q52: 0 | R52: 0 | S52: 29920.85 | T52: 0 | U52: 10661.26 | V52: 0 | W52: 119130.64
A53: 1507 | B53: SO CONWAY COUNTY | C53: 147446 | D53: 40992 | E53: 1763564 | F53: 83153 | J53: 34467.32 | L53: 129236.78 | N53: 39527.16 | O53: 97042.05 | P53: 913577.24 | Q53: 0 | R53: 0 | S53: 142544.97 | T53: 10229.08 | U53: 57436.74 | V53: 80775.61 | W53: 695239.74
A54: 1601 | B54: BAY | C54: 2429 | D54: 1464 | E54: 170546 | F54: 20519 | J54: 3581.02 | L54: 31891.02 | N54: 8066.79 | O54: 10082.29 | P54: 149516.89 | Q54: 0 | R54: 0 | S54: 20396.63 | T54: 0 | U54: 10924.99 | V54: 0 | W54: 143829.44
A55: 1602 | B55: WESTSIDE CONSOLIDATED | C55: 25882 | D55: 6222 | E55: 521322 | F55: 67167 | J55: 19695.61 | L55: 104391.53 | N55: 15255.76 | O55: 55452.6 | P55: 433031.64 | Q55: 0 | R55: 0 | S55: 59339.52 | T55: 0 | U55: 38670.21 | V55: 0 | W55: 466907.77
A56: 1603 | B56: BROOKLAND | C56: 22676 | D56: 15738 | E56: 564348 | F56: 112550 | J56: 32229.18 | L56: 174924.43 | N56: 17901.23 | O56: 90740.62 | P56: 315050.12 | Q56: 0 | R56: 0 | S56: 64467.46 | T56: 0 | U56: 23854.83 | V56: 0 | W56: 623886.32
A57: 1605 | B57: BUFFALO ISLAND CENTRAL | C57: 0 | D57: 19032 | E57: 231340 | F57: 25284 | J57: 4923.9 | L57: 39295.81 | N57: 12713.94 | O57: 13863.15 | P57: 234748.28 | Q57: 125912.08 | R57: 0 | S57: 35455.02 | T57: 0 | U57: 17939.31 | V57: 24547.58 | W57: 210053.52
A58: 1608 | B58: JONESBORO | C58: 493142 | D58: 217404 | E58: 5086252 | F58: 240049 | J58: 74753.8 | L58: 373083.77 | N58: 62038.63 | O58: 210467.82 | P58: 3893133.24 | Q58: 0 | R58: 0 | S58: 399263.27 | T58: 64084.56 | U58: 304226.63 | V58: 0 | W58: 1760866.72
A59: 1611 | B59: NETTLETON | C59: 192504 | D59: 118584 | E59: 2313472 | F59: 138463 | J59: 38495.97 | L59: 215198.81 | N59: 29747.21 | O59: 108384.63 | P59: 1427134.9 | Q59: 49971.39 | R59: 55959.44 | S59: 209030.39 | T59: 31552.99 | U59: 108505.85 | V59: 0 | W59: 966523.28
A60: 1612 | B60: VALLEY VIEW | C60: 53046 | D60: 32208 | E60: 443850 | F60: 107969 | J60: 21933.75 | L60: 167805.81 | N60: 17849.25 | O60: 61754.03 | P60: 271552.8 | Q60: 0 | R60: 0 | S60: 61109.61 | T60: 10360.42 | U60: 21072.7 | V60: 0 | W60: 586269.04
A61: 1613 | B61: RIVERSIDE | C61: 10772 | D61: 4758 | E61: 212510 | F61: 27595 | J61: 1342.88 | L61: 42888.34 | N61: 7762.94 | O61: 3780.85 | P61: 250044.62 | Q61: 0 | R61: 0 | S61: 29268.04 | T61: 0 | U61: 21551.05 | V61: 0 | W61: 206805.68
A62: 1701 | B62: ALMA | C62: 198529 | D62: 18666 | E62: 860800 | F62: 115423 | J62: 40286.48 | L62: 179390.62 | N62: 33207.01 | O62: 113425.77 | P62: 725265.6 | Q62: 0 | R62: 0 | S62: 125125.55 | T62: 0 | U62: 55548.16 | V62: 0 | W62: 857912.79
A63: 1702 | B63: CEDARVILLE | C63: 52467 | D63: 3660 | E63: 548760 | F63: 26580 | J63: 6266.78 | L63: 41311.22 | N63: 8967.29 | O63: 17644 | P63: 438025.05 | Q63: 0 | R63: 0 | S63: 36382.59 | T63: 0 | U63: 36103.53 | V63: 25159.04 | W63: 207878.01
A64: 1703 | B64: MOUNTAINBURG | C64: 23048 | D64: 1464 | E64: 469136 | F64: 22008 | J64: 12533.57 | L64: 34204.25 | N64: 3686.5 | O64: 35288.01 | P64: 249686.18 | Q64: 0 | R64: 0 | S64: 36997.39 | T64: 0 | U64: 19114.68 | V64: 20743.36 | W64: 181280.44
A65: 1704 | B65: MULBERRY/PLEASANT VIEW BI-COUNTY | C65: 26339 | D65: 4758 | E65: 303432 | F65: 14715 | J65: 9847.8 | L65: 22869.47 | N65: 7616.9 | O65: 27726.3 | P65: 204605.96 | Q65: 0 | R65: 0 | S65: 24817.93 | T65: 0 | U65: 17518.3 | V65: 0 | W65: 145843.58
A66: 1705 | B66: VAN BUREN | C66: 418247 | D66: 222162 | E66: 1888380 | F66: 212615 | J66: 59086.83 | L66: 330445.46 | N66: 64898.48 | O66: 166357.8 | P66: 1609107.37 | Q66: 120237.22 | R66: 0 | S66: 244113.48 | T66: 61582.57 | U66: 129482.97 | V66: 0 | W66: 1496791.48
A67: 1802 | B67: EARLE | C67: 0 | D67: 732 | E67: 591971 | F67: 14024 | J67: 2685.76 | L67: 21796.49 | N67: 6053.37 | O67: 7561.71 | P67: 445529.23 | Q67: 0 | R67: 0 | S67: 42997.83 | T67: 0 | U67: 33278.68 | V67: 13570.48 | W67: 150620.2
A68: 1803 | B68: WEST MEMPHIS | C68: 112425 | D68: 11712 | E68: 3617512 | F68: 172134 | J68: 92211.28 | L68: 267530.08 | N68: 110975.98 | O68: 259618.99 | P68: 3664855.57 | Q68: 0 | R68: 153726.98 | S68: 363457.23 | T68: 0 | U68: 283945.61 | V68: 0 | W68: 1564548.36
A69: 1804 | B69: MARION | C69: 280685 | D69: 45384 | E69: 3359272 | F69: 145449 | J69: 28648.16 | L69: 226056.25 | N69: 45819.97 | O69: 80658.32 | P69: 1154676.96 | Q69: 0 | R69: 7630.79 | S69: 193907.49 | T69: 12680.9 | U69: 88621.66 | V69: 0 | W69: 1045477.81
A70: 1901 | B70: CROSS COUNTY | C70: 33056 | D70: 1830 | E70: 543380 | F70: 25548 | J70: 6714.41 | L70: 39706.12 | N70: 4169.3 | O70: 18904.29 | P70: 324789.54 | Q70: 0 | R70: 0 | S70: 31540.34 | T70: 0 | U70: 26795.1 | V70: 21711.38 | W70: 212943.88
A71: 1905 | B71: WYNNE | C71: 102785 | D71: 9882 | E71: 793550 | F71: 90055 | J71: 18800.35 | L71: 139963.68 | N71: 28664.48 | O71: 52932.02 | P71: 1158814.15 | Q71: 0 | R71: 0 | S71: 150185.21 | T71: 0 | U71: 87506.63 | V71: 86684.52 | W71: 680506.19
A72: 2002 | B72: FORDYCE | C72: 14583 | D72: 2928 | E72: 199598 | F72: 26071 | J72: 16114.59 | L72: 40519.16 | N72: 18652.1 | O72: 45370.31 | P72: 384475.88 | Q72: 0 | R72: 275985.68 | S72: 35204.61 | T72: 0 | U72: 30987.57 | V72: 25038.92 | W72: 267249.45
A73: 2104 | B73: DUMAS | C73: 81284 | D73: 27084 | E73: 774720 | F73: 33708 | J73: 29991.04 | L73: 52388.97 | N73: 50334.34 | O73: 84439.18 | P73: 680177.52 | Q73: 62418.07 | R73: 0 | S73: 84550.55 | T73: 0 | U73: 48546.76 | V73: 32594.59 | W73: 378142.15
A74: 2105 | B74: MCGEHEE | C74: 38015 | D74: 17934 | E74: 844660 | F74: 38965 | J74: 45658.01 | L74: 60559.6 | N74: 25747.88 | O74: 128549.21 | P74: 674720.28 | Q74: 0 | R74: 0 | S74: 83455.1 | T74: 0 | U74: 44841.21 | V74: 37179.62 | W74: 370600.07
A75: 2202 | B75: DREW CENTRAL | C75: 10058 | D75: 17202 | E75: 923208 | F75: 43349 | J75: 26410.02 | L75: 67373.4 | N75: 36933.77 | O75: 74356.89 | P75: 247445.19 | Q75: 0 | R75: 0 | S75: 41794.36 | T75: 0 | U75: 18901.42 | V75: 40925.92 | W75: 330907.31
A76: 2203 | B76: MONTICELLO | C76: 47997 | D76: 10248 | E76: 493346 | F76: 59234 | J76: 41181.73 | L76: 92061.87 | N76: 77677.04 | O76: 115946.34 | P76: 741716.77 | Q76: 0 | R76: 0 | S76: 94551.63 | T76: 0 | U76: 57044.61 | V76: 55707.9 | W76: 437480.58
A77: 2301 | B77: CONWAY | C77: 451448 | D77: 255468 | E77: 3007958 | F77: 368673 | J77: 107878.24 | L77: 572992.16 | N77: 107270.72 | O77: 303729.02 | P77: 2330142.26 | Q77: 0 | R77: 88952.93 | S77: 400984.48 | T77: 68140.54 | U77: 179691.74 | V77: 0 | W77: 2698752.58
A78: 2303 | B78: GREENBRIER | C78: 87666 | D78: 13908 | E78: 815608 | F78: 139178 | J78: 32229.18 | L78: 216310.84 | N78: 36747.61 | O78: 90740.62 | P78: 456674.09 | Q78: 0 | R78: 0 | S78: 91354.21 | T78: 0 | U78: 36995.67 | V78: 0 | W78: 850272.27
A79: 2304 | B79: GUY-PERKINS | C79: 26730 | D79: 1098 | E79: 199808 | F79: 11522 | J79: 6266.78 | L79: 17906.72 | N79: 4843.12 | O79: 17644 | P79: 84456.83 | Q79: 0 | R79: 0 | S79: 17056.85 | T79: 0 | U79: 10000 | V79: 0 | W79: 87802.38
A80: 2305 | B80: MAYFLOWER | C80: 70441 | D80: 4026 | E80: 306660 | F80: 36845 | J80: 12533.57 | L80: 57264.89 | N80: 7593.07 | O80: 35288.01 | P80: 195205.51 | Q80: 0 | R80: 0 | S80: 29801.65 | T80: 0 | U80: 15687.57 | V80: 0 | W80: 277597.3
A81: 2306 | B81: MOUNT VERNON/ENOLA | C81: 7608 | D81: 1464 | E81: 271404 | F81: 19589 | J81: 7609.66 | L81: 30444.45 | N81: 5049.77 | O81: 21424.86 | P81: 153071.72 | Q81: 0 | R81: 0 | S81: 27675.93 | T81: 0 | U81: 10000 | V81: 0 | W81: 120139.47
A82: 2307 | B82: VILONIA | C82: 46175 | D82: 22326 | E82: 679494 | F82: 109047 | J82: 48791.4 | L82: 169481.43 | N82: 18946.54 | O82: 137371.21 | P82: 362343.76 | Q82: 0 | R82: 0 | S82: 81717.1 | T82: 0 | U82: 29782.85 | V82: 0 | W82: 708212.22
A83: 2402 | B83: CHARLESTON | C83: 44675 | D83: 3660 | E83: 229188 | F83: 32925 | J83: 11638.31 | L83: 51172.62 | N83: 12797.01 | O83: 32767.44 | P83: 185941.31 | Q83: 0 | R83: 0 | S83: 30372.71 | T83: 0 | U83: 14235.34 | V83: 0 | W83: 205216.95
A84: 2403 | B84: COUNTY LINE | C84: 48167 | D84: 1098 | E84: 409956 | F84: 20122 | J84: 8952.55 | L84: 31273.81 | N84: 5677.08 | O84: 25205.72 | P84: 187538.52 | Q84: 0 | R84: 19115.48 | S84: 29767.93 | T84: 0 | U84: 12763.77 | V84: 0 | W84: 133889.53
A85: 2404 | B85: OZARK | C85: 247377 | D85: 6222 | E85: 482586 | F85: 62736 | J85: 31781.55 | L85: 97504.87 | N85: 22308.23 | O85: 89480.33 | P85: 549819.36 | Q85: 0 | R85: 0 | S85: 79710.19 | T85: 0 | U85: 42040.08 | V85: 61682.33 | W85: 451798.86
A86: 2501 | B86: MAMMOTH SPRING | C86: 26440 | D86: 1098 | E86: 351852 | F86: 16665 | J86: 13876.45 | L86: 25900.16 | N86: 15320.21 | O86: 39068.87 | P86: 195346.63 | Q86: 0 | R86: 0 | S86: 23381.32 | T86: 0 | U86: 14963.43 | V86: 15961.65 | W86: 155368.14
A87: 2502 | B87: SALEM | C87: 36039 | D87: 732 | E87: 294824 | F87: 31738 | J87: 17009.84 | L87: 49327.39 | N87: 12659.66 | O87: 47890.88 | P87: 289159.8 | Q87: 0 | R87: 0 | S87: 42951.58 | T87: 0 | U87: 22151.97 | V87: 29658.01 | W87: 237620.63
A88: 2503 | B88: VIOLA | C88: 0 | D88: 1098 | E88: 287292 | F88: 14043 | J88: 8952.55 | L88: 21825.63 | N88: 6785 | O88: 25205.72 | P88: 193942.45 | Q88: 0 | R88: 0 | S88: 27584.93 | T88: 0 | U88: 15381.16 | V88: 13870.3 | W88: 101605.9
A89: 2601 | B89: CUTTER-MORNING STAR | C89: 39518 | D89: 8784 | E89: 532620 | F89: 24951 | J89: 8057.29 | L89: 38779.43 | N89: 6526.45 | O89: 22685.15 | P89: 258201.41 | Q89: 0 | R89: 0 | S89: 24765.94 | T89: 0 | U89: 22107.12 | V89: 0 | W89: 181904.57
A90: 2602 | B90: FOUNTAIN LAKE | C90: 88072 | D90: 7686 | E90: 354542 | F90: 45034 | J90: 14324.08 | L90: 69992.04 | N90: 12617.04 | O90: 40329.16 | P90: 315030.31 | Q90: 0 | R90: 0 | S90: 48784.68 | T90: 0 | U90: 26963.12 | V90: 0 | W90: 322415.13
A91: 2603 | B91: HOT SPRINGS | C91: 351850 | D91: 147132 | E91: 3112868 | F91: 132020 | J91: 67591.76 | L91: 205185.29 | N91: 34796.34 | O91: 190303.24 | P91: 2265866.22 | Q91: 0 | R91: 30543.43 | S91: 222642.09 | T91: 40122.84 | U91: 193600.68 | V91: 0 | W91: 1110616.32
A92: 2604 | B92: JESSIEVILLE | C92: 55729 | D92: 4758 | E92: 604712 | F92: 29258 | J92: 12533.57 | L92: 45473.17 | N92: 4447.22 | O92: 35288.01 | P92: 371009.05 | Q92: 0 | R92: 0 | S92: 30571.63 | T92: 0 | U92: 31765.68 | V92: 0 | W92: 176643.01
A93: 2605 | B93: LAKE HAMILTON | C93: 344770 | D93: 98820 | E93: 1431080 | F93: 147170 | J93: 46553.26 | L93: 228731.42 | N93: 30787.4 | O93: 131069.78 | P93: 1106819.83 | Q93: 0 | R93: 0 | S93: 179680.71 | T93: 27186.64 | U93: 85950.83 | V93: 0 | W93: 1023985.96
A94: 2606 | B94: LAKESIDE | C94: 340739 | D94: 67710 | E94: 821526 | F94: 125497 | J94: 30886.3 | L94: 195047.05 | N94: 31316.46 | O94: 86959.76 | P94: 496609.6 | Q94: 0 | R94: 0 | S94: 88911.83 | T94: 20767.98 | U94: 38546.85 | V94: 0 | W94: 787669.45
A95: 2607 | B95: MOUNTAIN PINE | C95: 65545 | D95: 1464 | E95: 532620 | F95: 22157 | J95: 10743.06 | L95: 34436.22 | N95: 9764.17 | O95: 30246.87 | P95: 234162.12 | Q95: 0 | R95: 0 | S95: 32518.45 | T95: 0 | U95: 19967.31 | V95: 22231.83 | W95: 192693.97
A96: 2703 | B96: POYEN | C96: 30373 | D96: 2928 | E96: 124278 | F96: 19006 | J96: 4028.64 | L96: 29539.32 | N96: 5540.52 | O96: 11342.57 | P96: 52064.51 | Q96: 0 | R96: 0 | S96: 8133.33 | T96: 0 | U96: 10000 | V96: 0 | W96: 127387.49
A97: 2705 | B97: SHERIDAN | C97: 277363 | D97: 75762 | E97: 936658 | F97: 158357 | J97: 51477.17 | L97: 246118.84 | N97: 33260.37 | O97: 144932.93 | P97: 797834.36 | Q97: 0 | R97: 0 | S97: 161282.47 | T97: 16856.28 | U97: 52094.7 | V97: 0 | W97: 1049392.29
A98: 2803 | B98: MARMADUKE | C98: 28069 | D98: 0 | E98: 180230 | F98: 22079 | J98: 8057.29 | L98: 34315.57 | N98: 14576.44 | O98: 22685.15 | P98: 192797.4 | Q98: 0 | R98: 0 | S98: 33870.32 | T98: 0 | U98: 13872.41 | V98: 21751.89 | W98: 161285.5
A99: 2807 | B99: GREENE COUNTY TECH | C99: 120489 | D99: 42456 | E99: 902226 | F99: 127358 | J99: 49239.03 | L99: 197940.19 | N99: 67687.6 | O99: 138631.5 | P99: 760935.28 | Q99: 0 | R99: 31795.23 | S99: 143834.11 | T99: 12786.71 | U99: 58188.17 | V99: 0 | W99: 888814.84
A100: 2808 | B100: PARAGOULD | C100: 208664 | D100: 86376 | E100: 2281120 | F100: 112712 | J100: 34914.95 | L100: 175176.8 | N100: 46817.34 | O100: 98302.33 | P100: 1085631.52 | Q100: 31398.54 | R100: 0 | S100: 176284.04 | T100: 24974.74 | U100: 82779.71 | V100: 101576.98 | W100: 894718.2
A101: 2901 | B101: BLEVINS | C101: 14952 | D101: 9150 | E101: 395968 | F101: 15143 | J101: 10295.43 | L101: 23535.64 | N101: 6554.68 | O101: 28986.58 | P101: 302157.32 | Q101: 0 | R101: 0 | S101: 38105.17 | T101: 0 | U101: 16768.98 | V101: 15169.82 | W101: 151211.5
A102: 2903 | B102: HOPE | C102: 258138 | D102: 157380 | E102: 1865784 | F102: 78317 | J102: 57296.32 | L102: 121720.09 | N102: 40617.12 | O102: 161316.65 | P102: 1111623.31 | Q102: 0 | R102: 0 | S102: 147974.19 | T102: 47176.36 | U102: 86132.62 | V102: 74462.92 | W102: 649418.33
A103: 2906 | B103: SPRING HILL | C103: 0 | D103: 2562 | E103: 196370 | F103: 23586 | J103: 5371.53 | L103: 36657.94 | N103: 3082.98 | O103: 15123.43 | P103: 94174.08 | Q103: 0 | R103: 0 | S103: 15638.39 | T103: 0 | U103: 10000 | V103: 0 | W103: 136895.43
A104: 3001 | B104: BISMARCK | C104: 23387 | D104: 10980 | E104: 345396 | F104: 37167 | J104: 13876.45 | L104: 57764.95 | N104: 7656.49 | O104: 39068.87 | P104: 317243.43 | Q104: 0 | R104: 0 | S104: 36692.06 | T104: 0 | U104: 24498.78 | V104: 0 | W104: 251627.33
A105: 3002 | B105: GLEN ROSE | C105: 61395 | D105: 732 | E105: 263620 | F105: 35539 | J105: 8952.55 | L105: 55234.91 | N105: 13336.26 | O105: 25205.72 | P105: 261594.66 | Q105: 0 | R105: 0 | S105: 31843.03 | T105: 0 | U105: 23683.65 | V105: 0 | W105: 273462.55
A106: 3003 | B106: MAGNET COVE | C106: 1830 | D106: 366 | E106: 203902 | F106: 25404 | J106: 6714.41 | L106: 39483.48 | N106: 9176.55 | O106: 18904.29 | P106: 120544.55 | Q106: 0 | R106: 0 | S106: 16372.26 | T106: 0 | U106: 10000 | V106: 0 | W106: 186629.11
A107: 3004 | B107: MALVERN | C107: 113009 | D107: 55266 | E107: 1536528 | F107: 68351 | J107: 35362.57 | L107: 106230.93 | N107: 40646.34 | O107: 99562.62 | P107: 961992.99 | Q107: 0 | R107: 0 | S107: 106485.35 | T107: 12873.61 | U107: 78690.38 | V107: 0 | W107: 557277.12
A108: 3005 | B108: OUACHITA | C108: 0 | D108: 732 | E108: 151716 | F108: 20192 | J108: 4476.27 | L108: 31381.63 | N108: 3489.86 | O108: 12602.86 | P108: 94304.68 | Q108: 0 | R108: 0 | S108: 14241.08 | T108: 0 | U108: 10000 | V108: 0 | W108: 131673.19
A109: 3102 | B109: DIERKS | C109: 0 | D109: 13542 | E109: 459452 | F109: 19466 | J109: 6266.78 | L109: 30253.86 | N109: 2851.73 | O109: 17644 | P109: 136468.81 | Q109: 0 | R109: 0 | S109: 21852.07 | T109: 0 | U109: 10000 | V109: 0 | W109: 125442.63
A110: 3104 | B110: MINERAL SPRINGS | C110: 31638 | D110: 9516 | E110: 571002 | F110: 14569 | J110: 7162.04 | L110: 22643.33 | N110: 3667.48 | O110: 20164.58 | P110: 248765.41 | Q110: 0 | R110: 0 | S110: 32890.38 | T110: 0 | U110: 19028.49 | V110: 13832.84 | W110: 136221.28
A111: 3105 | B111: NASHVILLE | C111: 141554 | D111: 94428 | E111: 1448296 | F111: 69714 | J111: 30886.3 | L111: 108349.5 | N111: 20833.87 | O111: 86959.76 | P111: 593839.74 | Q111: 46838.61 | R111: 0 | S111: 73718.3 | T111: 30209.17 | U111: 50439.17 | V111: 0 | W111: 471092.54
A112: 3201 | B112: BATESVILLE | C112: 221358 | D112: 260958 | E112: 921594 | F112: 116500 | J112: 68039.39 | L112: 181064.49 | N112: 106922.79 | O112: 191563.53 | P112: 906088.57 | Q112: 89756.48 | R112: 0 | S112: 145814.95 | T112: 65920.4 | U112: 68861.23 | V112: 0 | W112: 878918.17
A113: 3209 | B113: SOUTHSIDE | C113: 8727 | D113: 16470 | E113: 556830 | F113: 72062 | J113: 40734.1 | L113: 111998.57 | N113: 22326.39 | O113: 114686.06 | P113: 318233.91 | Q113: 0 | R113: 0 | S113: 42609.6 | T113: 0 | U113: 24380.31 | V113: 0 | W113: 474960.26
A114: 3211 | B114: MIDLAND | C114: 0 | D114: 4392 | E114: 217554 | F114: 16970 | J114: 22829 | L114: 26374 | N114: 26160.93 | O114: 64274.6 | P114: 204215.1 | Q114: 21539.12 | R114: 0 | S114: 35230.77 | T114: 0 | U114: 15477.51 | V114: 0 | W114: 148545.42
A115: 3212 | B115: CEDAR RIDGE | C115: 54867 | D115: 2196 | E115: 499264 | F115: 23854 | J115: 24619.51 | L115: 37073.5 | N115: 14337.16 | O115: 69315.75 | P115: 310460.97 | Q115: 0 | R115: 0 | S115: 40262.01 | T115: 0 | U115: 23504.12 | V115: 0 | W115: 214434.31
A116: 3301 | B116: CALICO ROCK | C116: 19144 | D116: 1098 | E116: 278684 | F116: 13707 | J116: 8952.55 | L116: 21303.42 | N116: 12520.2 | O116: 25205.72 | P116: 144301.61 | Q116: 0 | R116: 0 | S116: 18854.26 | T116: 0 | U116: 11432.82 | V116: 0 | W116: 120517.49
A117: 3302 | B117: MELBOURNE | C117: 44807 | D117: 1830 | E117: 221118 | F117: 28567 | J117: 17009.84 | L117: 44399.03 | N117: 22682.44 | O117: 47890.88 | P117: 239539.02 | Q117: 0 | R117: 0 | S117: 38302.2 | T117: 0 | U117: 18126.32 | V117: 27800.01 | W117: 207250.33
A118: 3306 | B118: IZARD COUNTY CONSOLIDATED | C118: 68745 | D118: 0 | E118: 471288 | F118: 22602 | J118: 17905.1 | L118: 35128.61 | N118: 16582.33 | O118: 50411.45 | P118: 326348.01 | Q118: 0 | R118: 0 | S118: 44338.43 | T118: 0 | U118: 25133.57 | V118: 22718.06 | W118: 171720.2
A119: 3403 | B119: NEWPORT | C119: 69566 | D119: 6588 | E119: 951184 | F119: 42327 | J119: 23724.26 | L119: 65784.04 | N119: 35188.34 | O119: 66795.17 | P119: 715889.75 | Q119: 0 | R119: 0 | S119: 81740.06 | T119: 0 | U119: 60850.24 | V119: 40724.42 | W119: 423038.99
A120: 3405 | B120: JACKSON COUNTY | C120: 7932 | D120: 2196 | E120: 618700 | F120: 29864 | J120: 13876.45 | L120: 46413.85 | N120: 9502.52 | O120: 39068.87 | P120: 221045.4 | Q120: 0 | R120: 0 | S120: 36926.75 | T120: 0 | U120: 16841.17 | V120: 28079.27 | W120: 227618.57
A121: 3505 | B121: PINE BLUFF | C121: 76349 | D121: 10614 | E121: 2735192 | F121: 110076 | J121: 55505.81 | L121: 171080.7 | N121: 36776.87 | O121: 156275.51 | P121: 2727128.28 | Q121: 0 | R121: 0 | S121: 229690.19 | T121: 0 | U121: 222027.91 | V121: 0 | W121: 1091312.87
A122: 3509 | B122: WATSON CHAPEL | C122: 220527 | D122: 5490 | E122: 1409560 | F122: 63920 | J122: 19695.61 | L122: 99344.27 | N122: 43664.28 | O122: 55452.6 | P122: 949347.95 | Q122: 0 | R122: 0 | S122: 130320.46 | T122: 0 | U122: 66520.06 | V122: 0 | W122: 536855.06
A123: 3510 | B123: WHITE HALL | C123: 110164 | D123: 57828 | E123: 914600 | F123: 114408 | J123: 24171.88 | L123: 177812.91 | N123: 24962.92 | O123: 68055.46 | P123: 571935.98 | Q123: 0 | R123: 0 | S123: 102320.81 | T123: 13408.07 | U123: 43143.44 | V123: 0 | W123: 741661.1
A124: 3544 | B124: FRIENDSHIP ASPIRE ACADEMIES ARKANSAS | C124: 0 | D124: 10980 | E124: 1113660 | F124: 55500 | L124: 0 | N124: 11939.72 | O124: 0 | P124: 1630605.91 | Q124: 0 | R124: 0 | S124: 151595.68 | T124: 0 | U124: 121068.8 | V124: 0 | W124: 381140.13
A125: 3601 | B125: CLARKSVILLE | C125: 209281 | D125: 243024 | E125: 1950788 | F125: 94019 | J125: 46553.26 | L125: 146124.72 | N125: 21581.24 | O125: 131069.78 | P125: 852257.62 | Q125: 167597.96 | R125: 0 | S125: 123928.84 | T125: 75349.54 | U125: 71181.61 | V125: 87217.01 | W125: 629796.75
A126: 3604 | B126: LAMAR | C126: 44181 | D126: 8418 | E126: 899536 | F126: 44680 | J126: 20143.24 | L126: 69441.85 | N126: 10467.67 | O126: 56712.88 | P126: 463588.1 | Q126: 0 | R126: 0 | S126: 53355.24 | T126: 0 | U126: 39692.28 | V126: 0 | W126: 294915.36
A127: 3606 | B127: WESTSIDE | C127: 79196 | D127: 3294 | E127: 480972 | F127: 22251 | J127: 12533.57 | L127: 34581.92 | N127: 7320.52 | O127: 35288.01 | P127: 330549.31 | Q127: 0 | R127: 0 | S127: 40559.68 | T127: 0 | U127: 19330.39 | V127: 21022.52 | W127: 181180.06
A128: 3704 | B128: LAFAYETTE COUNTY | C128: 41985 | D128: 0 | E128: 459452 | F128: 18058 | J128: 13876.45 | L128: 28065.36 | N128: 30000.2 | O128: 39068.87 | P128: 368578.37 | Q128: 0 | R128: 0 | S128: 40916.11 | T128: 0 | U128: 28375.68 | V128: 17584.28 | W128: 198737.03
A129: 3804 | B129: HOXIE | C129: 43303 | D129: 2196 | E129: 634840 | F129: 29388 | J129: 7609.66 | L129: 45674.83 | N129: 13542.12 | O129: 21424.86 | P129: 244414.5 | Q129: 0 | R129: 0 | S129: 32818.76 | T129: 0 | U129: 18950.95 | V129: 28591.62 | W129: 267495.54
A130: 3806 | B130: SLOAN-HENDRIX | C130: 54489 | D130: 1830 | E130: 559520 | F130: 27646 | J130: 11190.68 | L130: 42967.61 | N130: 17769.24 | O130: 31507.15 | P130: 243555.42 | Q130: 0 | R130: 0 | S130: 32310 | T130: 0 | U130: 18750.79 | V130: 25939.71 | W130: 209212.6
A131: 3809 | B131: HILLCREST | C131: 0 | D131: 366 | E131: 351852 | F131: 14963 | J131: 9847.8 | L131: 23254.72 | N131: 11203.56 | O131: 27726.3 | P131: 325662.08 | Q131: 0 | R131: 0 | S131: 43816.42 | T131: 0 | U131: 21997.3 | V131: 13839.34 | W131: 125810.12
A132: 3810 | B132: LAWRENCE COUNTY | C132: 8640 | D132: 12078 | E132: 314228 | F132: 38188 | J132: 15666.96 | L132: 59351.4 | N132: 24212.85 | O132: 44110.02 | P132: 447409.35 | Q132: 0 | R132: 0 | S132: 53109.2 | T132: 0 | U132: 33815.25 | V132: 33804.77 | W132: 312146.58
A133: 3840 | B133: IMBODEN AREA CHARTER SCHOOL | C133: 0 | D133: 0 | E133: 28002 | F133: 2396 | J133: 0 | L133: 0 | N133: 1338.56 | O133: 0 | P133: 31591.98 | Q133: 0 | R133: 0 | S133: 4810.89 | T133: 0 | U133: 10000 | V133: 0 | W133: 20635.83
A134: 3904 | B134: LEE COUNTY | C134: 55097 | D134: 9150 | E134: 906506 | F134: 23156 | J134: 27305.28 | L134: 35988.28 | N134: 21258.98 | O134: 76877.47 | P134: 940879.92 | Q134: 0 | R134: 0 | S134: 79495.51 | T134: 0 | U134: 72362.05 | V134: 20588.52 | W134: 286634.7
A135: 4003 | B135: STAR CITY | C135: 94423 | D135: 30744 | E135: 764670 | F135: 51402 | J135: 28200.53 | L135: 79888.99 | N135: 48375.14 | O135: 79398.04 | P135: 427930.52 | Q135: 33642.99 | R135: 0 | S135: 66959.53 | T135: 0 | U135: 32827.55 | V135: 48142.48 | W135: 428682.85
A136: 4101 | B136: ASHDOWN | C136: 37725 | D136: 4026 | E136: 989920 | F136: 48252 | J136: 18800.35 | L136: 74992.68 | N136: 21946.68 | O136: 52932.02 | P136: 500441.74 | Q136: 0 | R136: 0 | S136: 67771.05 | T136: 0 | U136: 40941.67 | V136: 44301.62 | W136: 343334.02
A137: 4102 | B137: FOREMAN | C137: 48026 | D137: 4392 | E137: 371220 | F137: 18279 | J137: 3133.39 | L137: 28409.22 | N137: 15938.29 | O137: 8822 | P137: 133438.58 | Q137: 0 | R137: 0 | S137: 21244.57 | T137: 0 | U137: 10094.21 | V137: 0 | W137: 130944.75
A138: 4201 | B138: BOONEVILLE | C138: 186898 | D138: 7320 | E138: 961944 | F138: 46266 | J138: 19695.61 | L138: 71906.62 | N138: 16812.81 | O138: 55452.6 | P138: 506130.96 | Q138: 0 | R138: 0 | S138: 70497.94 | T138: 0 | U138: 31738.29 | V138: 43993.56 | W138: 386348.19
A139: 4202 | B139: MAGAZINE | C139: 64541 | D139: 1098 | E139: 346472 | F139: 15650 | J139: 10743.06 | L139: 24323.04 | N139: 5381.33 | O139: 30246.87 | P139: 142559.78 | Q139: 0 | R139: 0 | S139: 22484.87 | T139: 0 | U139: 11047.39 | V139: 0 | W139: 139578.97
A140: 4203 | B140: PARIS | C140: 147392 | D140: 7686 | E140: 773644 | F140: 36161 | J140: 12085.94 | L140: 56201.23 | N140: 15384.99 | O140: 34027.73 | P140: 314462.71 | Q140: 0 | R140: 0 | S140: 45690.2 | T140: 0 | U140: 25393.81 | V140: 36683.41 | W140: 270899.5
A141: 4204 | B141: SCRANTON | C141: 53832 | D141: 3294 | E141: 115670 | F141: 16187 | J141: 5819.15 | L141: 25157.06 | N141: 3529.89 | O141: 16383.72 | P141: 104128.04 | Q141: 0 | R141: 0 | S141: 16472.44 | T141: 0 | U141: 10558.44 | V141: 0 | W141: 107805.43
A142: 4301 | B142: LONOKE | C142: 61289 | D142: 34770 | E142: 528854 | F142: 57683 | J142: 18352.73 | L142: 89650.14 | N142: 25729.97 | O142: 51671.74 | P142: 435373.39 | Q142: 0 | R142: 0 | S142: 69100.2 | T142: 10431.64 | U142: 33452.08 | V142: 54763.37 | W142: 436453.33
A143: 4302 | B143: ENGLAND | C143: 21085 | D143: 13908 | E143: 486352 | F143: 21806 | J143: 6714.41 | L143: 33891.27 | N143: 13173.44 | O143: 18904.29 | P143: 276926.24 | Q143: 0 | R143: 0 | S143: 24818.24 | T143: 0 | U143: 23111.96 | V143: 20621.58 | W143: 207624.12
A144: 4303 | B144: CARLISLE | C144: 44411 | D144: 9150 | E144: 192066 | F144: 22399 | J144: 8952.55 | L144: 34812.14 | N144: 8313.95 | O144: 25205.72 | P144: 134682.31 | Q144: 0 | R144: 0 | S144: 22729.51 | T144: 0 | U144: 10000 | V144: 0 | W144: 168232.02
A145: 4304 | B145: CABOT | C145: 1042237 | D145: 106872 | E145: 2386030 | F145: 385570 | J145: 134288.27 | L145: 599252.51 | N145: 94961.82 | O145: 378085.91 | P145: 1363799.39 | Q145: 0 | R145: 0 | S145: 308377.88 | T145: 32003.69 | U145: 104685.63 | V145: 0 | W145: 2332829.45
A146: 4401 | B146: HUNTSVILLE | C146: 188337 | D146: 53802 | E146: 1162442 | F146: 84381 | J146: 25067.14 | L146: 131145.53 | N146: 16462.29 | O146: 70576.03 | P146: 892131.08 | Q146: 37820.03 | R146: 0 | S146: 131344.33 | T146: 17031.98 | U146: 69653.27 | V146: 81220.91 | W146: 565680.47
A147: 4501 | B147: FLIPPIN | C147: 21631 | D147: 732 | E147: 600408 | F147: 28615 | J147: 10295.43 | L147: 44473.63 | N147: 21700.11 | O147: 28986.58 | P147: 318860.02 | Q147: 0 | R147: 0 | S147: 49300.29 | T147: 0 | U147: 24523.15 | V147: 29287.27 | W147: 213792.98
A148: 4502 | B148: YELLVILLE-SUMMIT | C148: 52181 | D148: 732 | E148: 781176 | F148: 36126 | J148: 15666.96 | L148: 56146.45 | N148: 19307.31 | O148: 44110.02 | P148: 375924.17 | Q148: 0 | R148: 0 | S148: 47717.52 | T148: 0 | U148: 32035.08 | V148: 32837.06 | W148: 273921.26
A149: 4602 | B149: GENOA CENTRAL | C149: 91379 | D149: 2928 | E149: 248556 | F149: 44555 | J149: 8057.29 | L149: 69247.19 | N149: 8405.45 | O149: 22685.15 | P149: 276134.32 | Q149: 0 | R149: 0 | S149: 45832.75 | T149: 0 | U149: 21457.84 | V149: 41932.47 | W149: 267205.42
A150: 4603 | B150: FOUKE | C150: 43159 | D150: 4026 | E150: 374986 | F150: 39434 | J150: 15219.33 | L150: 61287.55 | N150: 23476.45 | O150: 42849.73 | P150: 293051.4 | Q150: 0 | R150: 0 | S150: 51112.13 | T150: 0 | U150: 21054.73 | V150: 36656.5 | W150: 271576.53
A151: 4605 | B151: TEXARKANA | C151: 364637 | D151: 39162 | E151: 2870768 | F151: 139634 | J151: 23276.63 | L151: 217019.55 | N151: 54788.71 | O151: 65534.89 | P151: 2334378.11 | Q151: 0 | R151: 0 | S151: 306141.28 | T151: 10735.48 | U151: 180325.01 | V151: 0 | W151: 1193355.49
A152: 4701 | B152: ARMOREL | C152: 0 | D152: 7320 | E152: 104910 | F152: 14670 | J152: 1790.51 | L152: 22800.11 | N152: 2793.2 | O152: 5041.14 | P152: 49790.59 | Q152: 0 | R152: 0 | S152: 8084 | T152: 0 | U152: 10000 | V152: 0 | W152: 100208.48
A153: 4702 | B153: BLYTHEVILLE | C153: 125090 | D153: 24522 | E153: 1163156 | F153: 50668 | J153: 21486.12 | L153: 78747.82 | N153: 13198.46 | O153: 60493.74 | P153: 1456983.35 | Q153: 0 | R153: 0 | S153: 111831.47 | T153: 0 | U153: 117089.87 | V153: 49515.95 | W153: 588644.75
A154: 4706 | B154: RIVERCREST | C154: 0 | D154: 17934 | E154: 930740 | F154: 42073 | J154: 11638.31 | L154: 65390.05 | N154: 27563.84 | O154: 32767.44 | P154: 412657.71 | Q154: 0 | R154: 0 | S154: 58319.96 | T154: 0 | U154: 30408.03 | V154: 38058.03 | W154: 359767.22
A155: 4708 | B155: GOSNELL | C155: 49458 | D155: 12444 | E155: 960868 | F155: 44139 | J155: 12085.94 | L155: 68600.25 | N155: 39718.95 | O155: 34027.73 | P155: 304977.32 | Q155: 0 | R155: 0 | S155: 41865.49 | T155: 0 | U155: 26109.94 | V155: 37744.1 | W155: 333495.87
A156: 4712 | B156: MANILA | C156: 37755 | D156: 4392 | E156: 311502 | F156: 38084 | J156: 9847.8 | L156: 59189.96 | N156: 23225.7 | O156: 27726.3 | P156: 214411.59 | Q156: 0 | R156: 0 | S156: 34307.78 | T156: 0 | U156: 18316.46 | V156: 0 | W156: 281782.77
A157: 4713 | B157: OSCEOLA | C157: 4028 | D157: 8784 | E157: 1229106 | F157: 31670 | J157: 26857.65 | L157: 49221.9 | N157: 7008.46 | O157: 75617.18 | P157: 925106.93 | Q157: 0 | R157: 0 | S157: 81793.26 | T157: 0 | U157: 74673.68 | V157: 31366.3 | W157: 345326.41
A158: 4801 | B158: BRINKLEY | C158: 18772 | D158: 4026 | E158: 328180 | F158: 14605 | J158: 15219.33 | L158: 22699.29 | N158: 15079.11 | O158: 42849.73 | P158: 434007.48 | Q158: 0 | R158: 0 | S158: 46860.2 | T158: 0 | U158: 30283.21 | V158: 14913.8 | W158: 150837.28
A159: 4802 | B159: CLARENDON | C159: 19540 | D159: 3660 | E159: 608101 | F159: 15239 | J159: 13876.45 | L159: 23683.68 | N159: 11762.27 | O159: 39068.87 | P159: 255007.62 | Q159: 0 | R159: 0 | S159: 33043.05 | T159: 0 | U159: 19572.75 | V159: 15763.2 | W159: 159209.87
A160: 4901 | B160: CADDO HILLS | C160: 7727 | D160: 8418 | E160: 502492 | F160: 20709 | J160: 7162.04 | L160: 32185.34 | N160: 6018.97 | O160: 20164.58 | P160: 263194.39 | Q160: 0 | R160: 0 | S160: 32189.1 | T160: 0 | U160: 20313.24 | V160: 19539.53 | W160: 165217.52
A161: 4902 | B161: MOUNT IDA | C161: 25724 | D161: 4392 | E161: 328180 | F161: 16115 | J161: 7609.66 | L161: 25046.32 | N161: 9930.09 | O161: 21424.86 | P161: 199178.64 | Q161: 0 | R161: 0 | S161: 28145.84 | T161: 0 | U161: 15326.09 | V161: 0 | W161: 108832.36
A162: 5006 | B162: PRESCOTT | C162: 85698 | D162: 16470 | E162: 742440 | F162: 34019 | J162: 17457.47 | L162: 52872.72 | N162: 39776.97 | O162: 49151.16 | P162: 356056.13 | Q162: 0 | R162: 0 | S162: 50762.32 | T162: 0 | U162: 27320.85 | V162: 32435.18 | W162: 275200.79
A163: 5008 | B163: NEVADA | C163: 0 | D163: 2928 | E163: 355080 | F163: 15938 | J163: 8504.92 | L163: 24771.23 | N163: 9209.49 | O163: 23945.44 | P163: 222021.14 | Q163: 0 | R163: 0 | S163: 21009.38 | T163: 0 | U163: 18147.21 | V163: 0 | W163: 141333.8
A164: 5102 | B164: JASPER | C164: 0 | D164: 732 | E164: 417498 | F164: 31659 | J164: 6714.41 | L164: 49203.83 | N164: 14622.16 | O164: 18904.29 | P164: 342956.6 | Q164: 23770.05 | R164: 0 | S164: 43822.81 | T164: 0 | U164: 27402.3 | V164: 28417.33 | W164: 249425.6
A165: 5106 | B165: DEER/MT. JUDEA | C165: 0 | D165: 0 | E165: 262544 | F165: 12481 | J165: 3133.39 | L165: 19398.16 | N165: 4987.31 | O165: 8822 | P165: 160086.59 | Q165: 0 | R165: 0 | S165: 18464.52 | T165: 0 | U165: 12751.44 | V165: 0 | W165: 113592.75
A166: 5201 | B166: BEARDEN | C166: 15210 | D166: 1830 | E166: 355080 | F166: 17138 | J166: 8952.55 | L166: 26635.1 | N166: 7733.82 | O166: 25205.72 | P166: 168703.69 | Q166: 0 | R166: 0 | S166: 22836.15 | T166: 0 | U166: 12974.78 | V166: 0 | W166: 142838.65
A167: 5204 | B167: CAMDEN-FAIRVIEW | C167: 141903 | D167: 12078 | E167: 1657040 | F167: 74741 | J167: 29991.04 | L167: 116162.27 | N167: 60377.65 | O167: 84439.18 | P167: 1154084.35 | Q167: 0 | R167: 0 | S167: 144199.74 | T167: 0 | U167: 88333.65 | V167: 70877.46 | W167: 646490.9
A168: 5205 | B168: HARMONY GROVE | C168: 32099 | D168: 732 | E168: 200136 | F168: 31277 | J168: 10743.06 | L168: 48611.1 | N168: 14963.01 | O168: 30246.87 | P168: 304717.72 | Q168: 0 | R168: 0 | S168: 31580.44 | T168: 0 | U168: 26089.83 | V168: 0 | W168: 216823.99
A169: 5301 | B169: EAST END | C169: 11842 | D169: 9516 | E169: 211972 | F169: 23463 | J169: 9400.17 | L169: 36466.19 | N169: 10759.37 | O169: 26466.01 | P169: 172995.33 | Q169: 0 | R169: 0 | S169: 25887.99 | T169: 0 | U169: 14451.48 | V169: 0 | W169: 187821.96
A170: 5303 | B170: PERRYVILLE | C170: 2914 | D170: 732 | E170: 300204 | F170: 33659 | J170: 12533.57 | L170: 52312.62 | N170: 7468.45 | O170: 35288.01 | P170: 227034.08 | Q170: 0 | R170: 0 | S170: 34509.58 | T170: 0 | U170: 17932.46 | V170: 0 | W170: 260395.9
A171: 5401 | B171: BARTON | C171: 0 | D171: 2928 | E171: 561672 | F171: 22959 | J171: 4923.9 | L171: 35682.88 | N171: 9160.73 | O171: 13863.15 | P171: 249132.32 | Q171: 0 | R171: 0 | S171: 27832.68 | T171: 0 | U171: 17620.02 | V171: 22361.9 | W171: 190943.63
A172: 5403 | B172: HELENA-W HELENA | C172: 42344 | D172: 4026 | E172: 1430731 | F172: 34447 | J172: 63115.48 | L172: 53537.72 | N172: 36840.35 | O172: 177700.38 | P172: 1237530.65 | Q172: 0 | R172: 0 | S172: 38463.53 | T172: 0 | U172: 98283.6 | V172: 34099.2 | W172: 432389.2
A173: 5404 | B173: MARVELL-ELAINE | C173: 0 | D173: 0 | E173: 348408 | F173: 7888 | J173: 10295.43 | L173: 12259.72 | N173: 15111.77 | O173: 28986.58 | P173: 489626.76 | Q173: 0 | R173: 0 | S173: 36567.47 | T173: 0 | U173: 39828.3 | V173: 10122.61 | W173: 165645.6
A174: 5440 | B174: KIPP DELTA | C174: 0 | D174: 6222 | E174: 1827529 | F174: 46037 | J174: 0 | L174: 0 | N174: 12821.33 | O174: 5041.14 | P174: 2439065.68 | Q174: 0 | R174: 0 | S174: 242831.79 | T174: 0 | U174: 171337.1 | V174: 40481.29 | W174: 475149.33
A175: 5502 | B175: CENTERPOINT | C175: 56975 | D175: 33306 | E175: 712312 | F175: 34721 | J175: 17009.84 | L175: 53962.6 | N175: 13619.36 | O175: 47890.88 | P175: 360537.08 | Q175: 52972.3 | R175: 0 | S175: 55799.89 | T175: 758.87 | U175: 26834.87 | V175: 34283.49 | W175: 268407.73
A176: 5503 | B176: KIRBY | C176: 0 | D176: 5856 | E176: 335712 | F176: 15519 | J176: 4923.9 | L176: 24119.05 | N176: 6543.16 | O176: 13863.15 | P176: 173872.82 | Q176: 0 | R176: 0 | S176: 22990.59 | T176: 0 | U176: 13316.2 | V176: 0 | W176: 115802.54
A177: 5504 | B177: SOUTH PIKE COUNTY | C177: 54155 | D177: 3660 | E177: 530468 | F177: 25015 | J177: 9847.8 | L177: 38878.51 | N177: 11660.71 | O177: 27726.3 | P177: 207694.73 | Q177: 0 | R177: 0 | S177: 35748.44 | T177: 0 | U177: 15835.78 | V177: 22805.25 | W177: 210199.77
A178: 5602 | B178: HARRISBURG | C178: 32905 | D178: 8418 | E178: 851116 | F178: 40166 | J178: 11638.31 | L178: 62425.22 | N178: 25513.07 | O178: 32767.44 | P178: 390238 | Q178: 0 | R178: 0 | S178: 56870.36 | T178: 0 | U178: 30012.77 | V178: 39180.46 | W178: 330522.19
A179: 5604 | B179: MARKED TREE | C179: 15563 | D179: 6588 | E179: 375524 | F179: 18228 | J179: 4476.27 | L179: 28330.54 | N179: 9238.76 | O179: 12602.86 | P179: 320297.76 | Q179: 0 | R179: 0 | S179: 29284.35 | T179: 0 | U179: 27338.59 | V179: 16628.25 | W179: 174596.19
A180: 5605 | B180: TRUMANN | C180: 81781 | D180: 30744 | E180: 1161004 | F180: 53914 | J180: 11638.31 | L180: 83792.75 | N180: 19732.88 | O180: 32767.44 | P180: 772633.04 | Q180: 0 | R180: 0 | S180: 103470.09 | T180: 0 | U180: 59352.67 | V180: 49075.87 | W180: 455241.96
A181: 5608 | B181: EAST POINSETT COUNTY | C181: 23266 | D181: 5124 | E181: 486352 | F181: 20905 | J181: 4923.9 | L181: 32490.16 | N181: 10554.34 | O181: 13863.15 | P181: 236943.32 | Q181: 0 | R181: 0 | S181: 30197.36 | T181: 0 | U181: 18841.1 | V181: 19622.65 | W181: 175230.04
A182: 5703 | B182: MENA | C182: 258928 | D182: 12078 | E182: 569742 | F182: 63246 | J182: 30886.3 | L182: 98297.52 | N182: 24154.86 | O182: 86959.76 | P182: 813940.6 | Q182: 0 | R182: 0 | S182: 104683.88 | T182: 0 | U182: 62268.85 | V182: 58660.08 | W182: 446590.83
A183: 5706 | B183: OUACHITA RIVER | C183: 98857 | D183: 2928 | E183: 565976 | F183: 27955 | J183: 14771.7 | L183: 43447.27 | N183: 7325.1 | O183: 41589.45 | P183: 208592.59 | Q183: 0 | R183: 0 | S183: 28974.98 | T183: 0 | U183: 17038.94 | V183: 26509.22 | W183: 191895.13
A184: 5707 | B184: COSSATOT RIVER | C184: 0 | D184: 40626 | E184: 712312 | F184: 32324 | J184: 9847.8 | L184: 50238.35 | N184: 6208.06 | O184: 27726.3 | P184: 388414.4 | Q184: 19972.72 | R184: 0 | S184: 50364.17 | T184: 731.87 | U184: 31306.97 | V184: 30228.36 | W184: 245145.71
A185: 5801 | B185: ATKINS | C185: 71396 | D185: 2196 | E185: 338940 | F185: 33467 | J185: 14771.7 | L185: 52013.63 | N185: 10380.46 | O185: 41589.45 | P185: 362313.5 | Q185: 0 | R185: 0 | S185: 53951.6 | T185: 0 | U185: 27347.38 | V185: 32372.68 | W185: 254997.69
A186: 5802 | B186: DOVER | C186: 123322 | D186: 5856 | E186: 389512 | F186: 44492 | J186: 21038.49 | L186: 69149.85 | N186: 14892 | O186: 59233.46 | P186: 348156.05 | Q186: 0 | R186: 0 | S186: 54158.63 | T186: 0 | U186: 26387.9 | V186: 0 | W186: 310999.08
A187: 5803 | B187: HECTOR | C187: 0 | D187: 0 | E187: 521860 | F187: 24654 | J187: 6714.41 | L187: 38316.66 | N187: 10959.27 | O187: 18904.29 | P187: 230526.5 | Q187: 0 | R187: 0 | S187: 32784.31 | T187: 0 | U187: 17390.06 | V187: 0 | W187: 179779.38
A188: 5804 | B188: POTTSVILLE | C188: 35834 | D188: 26352 | E188: 420178 | F188: 67238 | J188: 20590.86 | L188: 104501.11 | N188: 18494.9 | O188: 57973.17 | P188: 278336.19 | Q188: 0 | R188: 0 | S188: 45875.4 | T188: 0 | U188: 21267.88 | V188: 0 | W188: 419448.19
A189: 5805 | B189: RUSSELLVILLE | C189: 347546 | D189: 357216 | E189: 1883000 | F189: 203281 | J189: 72068.03 | L189: 315938.94 | N189: 71699.85 | O189: 202906.1 | P189: 1589523.85 | Q189: 0 | R189: 0 | S189: 239531.06 | T189: 100975.6 | U189: 121143.89 | V189: 0 | W189: 1367062.38
A190: 5901 | B190: DES ARC | C190: 2293 | D190: 2928 | E190: 492966 | F190: 23348 | J190: 7162.04 | L190: 36287.85 | N190: 10057.51 | O190: 20164.58 | P190: 177247.16 | Q190: 0 | R190: 0 | S190: 25370.86 | T190: 0 | U190: 13231.25 | V190: 0 | W190: 155773.23
A191: 5903 | B191: HAZEN | C191: 23098 | D191: 1464 | E191: 407804 | F191: 19641 | J191: 10743.06 | L191: 30526.04 | N191: 9260.79 | O191: 30246.87 | P191: 215136.18 | Q191: 0 | R191: 0 | S191: 29399.78 | T191: 0 | U191: 17496.62 | V191: 18250.76 | W191: 153394.35
A192: 6001 | B192: LITTLE ROCK | C192: 664694 | D192: 1239642 | E192: 15406168 | F192: 741969 | J192: 366159.35 | L192: 1153168.22 | N192: 243882.39 | O192: 1030914.27 | P192: 10606304.76 | Q192: 0 | R192: 0 | S192: 1214033.46 | T192: 338767.58 | U192: 807144.31 | V192: 0 | W192: 5727113.63
A193: 6002 | B193: NORTH LITTLE ROCK | C193: 823981 | D193: 251442 | E193: 5825464 | F193: 271886 | J193: 76544.31 | L193: 422565.03 | N193: 90838 | O193: 215508.97 | P193: 3707124.62 | Q193: 0 | R193: 0 | S193: 458945.06 | T193: 68641.96 | U193: 288908.89 | V193: 0 | W193: 2211204.29
A194: 6003 | B194: PULASKI COUNTY | C194: 571976 | D194: 325740 | E194: 3117172 | F194: 427185 | J194: 99373.32 | L194: 663930.34 | N194: 109499.68 | O194: 279783.57 | P194: 4731815.58 | Q194: 30298.9 | R194: 0 | S194: 639176.41 | T194: 90851.35 | U194: 357609.07 | V194: 0 | W194: 3120474.83
A195: 6004 | B195: JACKSONVILLE NORTH PULASKI | C195: 385953 | D195: 92598 | E195: 3278572 | F195: 156396 | J195: 86839.74 | L195: 243071.25 | N195: 58956.96 | O195: 244495.56 | P195: 2239377.8 | Q195: 26813.13 | R195: 0 | S195: 330174.71 | T195: 23587.25 | U195: 166263.37 | V195: 0 | W195: 1316823.84
A196: 6040 | B196: ACADEMICS PLUS | C196: 0 | D196: 17202 | E196: 299573 | F196: 71509 | J196: 4923.9 | L196: 111138.9 | N196: 0 | O196: 13863.15 | P196: 76681.52 | Q196: 0 | R196: 0 | S196: 55480.33 | T196: 0 | U196: 10219.05 | V196: 0 | W196: 430509.9
A197: 6041 | B197: LISA ACADEMY | C197: 0 | D197: 382836 | E197: 1465512 | F197: 168750 | J197: 9847.8 | L197: 262271.25 | N197: 44279.21 | O197: 27726.3 | P197: 1343711.99 | Q197: 0 | R197: 0 | S197: 188560.08 | T197: 111395.67 | U197: 100929.46 | V197: 0 | W197: 1076947.41
A198: 6043 | B198: ARKANSAS VIRTUAL ACADEMY | C198: 0 | D198: 38430 | E198: 0 | F198: 148537 | J198: 0 | L198: 0 | N198: 0 | O198: 0 | P198: 1594983.37 | Q198: 0 | R198: 0 | S198: 244331.32 | T198: 614.25 | U198: 117251.8 | V198: 0 | W198: 930607.11
A199: 6047 | B199: ESTEM | C199: 0 | D199: 46482 | E199: 1733760 | F199: 102549 | J199: 8504.92 | L199: 157654.16 | N199: 21687.87 | O199: 23945.44 | P199: 1500973.72 | Q199: 0 | R199: 0 | S199: 203849.87 | T199: 16693.95 | U199: 113236.63 | V199: 0 | W199: 803600.57
A200: 6050 | B200: ARKANSAS LIGHTHOUSE ACADEMIES | C200: 0 | D200: 3660 | E200: 156020 | F200: 16023 | J200: 447.62 | L200: 0 | N200: 7226.39 | O200: 1260.28 | P200: 798904.55 | Q200: 0 | R200: 0 | S200: 35194.46 | T200: 0 | U200: 62326.89 | V200: 0 | W200: 179392.22
... 65 more rows
